Cogmind - Beta 15 @@@ ROGUE MODE // 2025.08.17 @ 16:49:04 Player: BlobtheGreat Result: Escaped! Performance ------------- Evolutions (9) 4500 Regions Visited (32) 6400 Robots Destroyed (306) 1530 Value Destroyed (16688) 16688 Prototype IDs (43) 860 Alien Tech Used (0) 0 Bonus (13279) 13279 TOTAL SCORE: 43257 Bonus ------- High Alert Combat Kills 964 Follower Combat Kills 3016 Entered Garrisons 1600 Used RIF Installer 4500 Aligned with FarCom 300 Win 3000 Friendly Fire -101 Cogmind --------- Core Integrity 1085/1600 Matter 154/300 Energy 577/600 System Corruption 41% Temperature Cool (14) Movement Walking (111) Location To Epsilon Eridani Parts ------- > --- POWER (2) -------- Reinforced Quantum Reactor Reinforced Quantum Reactor > --- PROPULSION (7) --- Advanced VSS Leg Biometal Leg Biometal Leg Biometal Leg Centrium Leg Centrium Leg Centrium Leg > --- UTILITY (12) ----- Huge Storage Unit Advanced Target Analyzer Experimental Transmission Jammer Relay Coupler [NC] (33) Relay Coupler [Grunt] (7) Relay Coupler [Sentry] (3) Relay Coupler [Behemoth] (7) High-powered Tractor Beam > --- WEAPON (4) ------- Enhanced Hardcell Cannon Enhanced Hardcell Cannon > --- INVENTORY (25) --- Reinforced Quantum Reactor Reinforced Quantum Reactor Centrium Leg Centrium Leg Field Propulsion Drive Matter Compressor (250) Relay Coupler [Grunt] (43) Relay Coupler [Heavy] (20) Relay Coupler [Proto] (16) Relay Coupler [Proto] (16) Heavy Disruptor Cannon KE Penetrator Railgun Enhanced Hardcell Cannon Advanced Remote Datajack Advanced Remote Datajack Advanced Remote Datajack Force Lance Peak State ------------ > --- POWER ------------ Reinforced Quantum Reactor Reinforced Quantum Reactor > --- PROPULSION ------- Biometal Leg Biometal Leg Biometal Leg Biometal Leg Centrium Leg Centrium Leg Centrium Leg > --- UTILITY ---------- Advanced Heat Sink Advanced Heat Sink Huge Storage Unit Advanced Target Analyzer Experimental Transmission Jammer Advanced Phase Shifter Heavy Armor Plating Relay Coupler [NC] Relay Coupler [Grunt] Relay Coupler [Sentry] Relay Coupler [Behemoth] > --- WEAPON ----------- Gamma Rifle Enhanced Hardcell Cannon Enhanced Hardcell Cannon Advanced Remote Datajack > --- INVENTORY -------- Reinforced Quantum Reactor Reinforced Quantum Reactor Centrium Leg Centrium Leg Field Propulsion Drive Matter Compressor Improved Heavy Armor Plating Advanced System Shield Relay Coupler [Grunt] Relay Coupler [Heavy] Relay Coupler [Proto] Relay Coupler [Proto] High-powered Tractor Beam Gamma Rifle Heavy Disruptor Cannon Railgun Enhanced Hardcell Cannon Enhanced Hardcell Cannon Ragnarok Missile Launcher Advanced Remote Datajack Advanced Remote Datajack Plasma Cutter Force Lance [Rating: 185] Favorites ----------- Power Quantum Reactor Engine Heavy Ion Engine Power Core Enhanced Nuclear Core Reactor Quantum Reactor Propulsion Centrium Leg Treads Light Treads Leg Centrium Leg Hover Unit Gravmag System Flight Unit Xenon Bombardment Thruster Utility High-capacity Storage Unit Device Improved Cooling System Storage High-capacity Storage Unit Processor Advanced Targeting Computer Hackware Relay Coupler [Sentry] Protection Improved Light Armor Plating Weapon Heavy Beamcaster Energy Gun Heavy Beamcaster Energy Cannon Enhanced Nova Cannon Ballistic Gun Heavy Assault Rifle Ballistic Cannon Enhanced Hardcell Cannon Launcher Ragnarok Missile Launcher Special Weapon Remote Datajack Impact Weapon Makeshift Hammer Slashing Weapon Power Sword Piercing Weapon Force Lance Build | -11 -10 -9 -9 -9 -8 -8 -8 -7 -7 -7 -7 -6 -6 -6 -6 -6 -5 -5 -5 -5 -4 -4 -4 -4 -4 -3 -3 -2 -2 -2 -2 -1 ------- Run | Yrd Mat Mat Min Exi Min Mat Gar Fac Gar Fac Gar Fac Was Fac Low Low Fac Gar Fac Gar Fac Was Fac Upp Upp Res Gar Res Gar Res Gar Acc Slots Evolved 18 | . . 2 . . . 2 . 2 . . . 2 . . . . 2 . . . 2 . . . . 2 . 2 . . . 2 Power 1 | . . . . . . . . . . . . . . . . . 1 . . . . . . . . . . . . . . . Propulsion 5 | . . 1 . . . . . 1 . . . 1 . . . . . . . . . . . . . 1 . . . . . 1 Utility 10 | . . . . . . 2 . 1 . . . 1 . . . . 1 . . . 2 . . . . 1 . 1 . . . 1 Weapon 2 | . . 1 . . . . . . . . . . . . . . . . . . . . . . . . . 1 . . . . Parts Attached 264 | 7 9 21 2 2 3 3 12 7 7 11 15 9 5 10 . . 4 9 . 16 1 1 11 7 3 3 16 . 17 14 8 31 Power 26 | 1 1 3 . . 1 . 1 2 . . . . . . . . 1 1 . 2 . . 1 1 2 . 3 . 2 2 . 2 Engine 6 | 1 1 3 . . 1 . . . . . . . . . . . . . . . . . . . . . . . . . . . Core 8 | . . . . . . . . 2 . . . . . . . . 1 1 . . . . 1 1 2 . . . . . . . Reactor 12 | . . . . . . . 1 . . . . . . . . . . . . 2 . . . . . . 3 . 2 2 . 2 Propulsion 76 | 2 1 7 . . 2 . 2 1 3 2 6 4 2 2 . . . 6 . 5 . . 4 . . 1 5 . 9 2 5 5 Treads 3 | 2 1 . . . . . . . . . . . . . . . . . . . . . . . . . . . . . . . Leg 67 | . . 7 . . 2 . 2 . 3 . 6 1 2 2 . . . 6 . 5 . . 4 . . 1 5 . 9 2 5 5 Wheel . | . . . . . . . . . . . . . . . . . . . . . . . . . . . . . . . . . Hover 3 | . . . . . . . . 1 . 1 . 1 . . . . . . . . . . . . . . . . . . . . Flight 3 | . . . . . . . . . . 1 . 2 . . . . . . . . . . . . . . . . . . . . Utility 76 | 2 2 4 . . . 2 4 2 2 8 3 2 1 2 . . 2 2 . 5 1 1 2 2 . 1 3 . 4 5 2 12 Device 28 | 1 . 1 . . . 1 3 . 1 2 . . 1 . . . 2 . . 1 . . . 2 . 1 1 . 1 3 . 7 Storage 8 | 1 1 1 . . . . . . . 1 1 . . . . . . 1 . . . . . . . . . . . 1 . 1 Processor 7 | . . . . . . 1 . . . . 1 . . 2 . . . . . 1 . . . . . . . . . 1 1 . Hackware 22 | . . . . . . . . 2 . 3 . 2 . . . . . 1 . 3 1 . 2 . . . 2 . 3 . 1 2 Protection 11 | . 1 2 . . . . 1 . 1 2 1 . . . . . . . . . . 1 . . . . . . . . . 2 Artifact . | . . . . . . . . . . . . . . . . . . . . . . . . . . . . . . . . . Weapon 86 | 2 5 7 2 2 . 1 5 2 2 1 6 3 2 6 . . 1 . . 4 . . 4 4 1 1 5 . 2 5 1 12 Energy Gun 20 | 1 1 1 . . . 1 1 1 . . 1 2 2 2 . . . . . . . . . 1 1 . 1 . . 2 . 2 Energy Cannon 10 | . . 1 . 2 . . 1 . . . . 1 . 1 . . . . . 1 . . . 1 . 1 1 . . . . . Ballistic Gun 28 | 1 2 4 2 . . . 1 . 2 1 2 . . 2 . . 1 . . 2 . . . . . . . . 2 2 1 3 Ballistic Cannon 6 | . . . . . . . . . . . . . . . . . . . . . . . . 1 . . 2 . . . . 3 Launcher 6 | . 1 1 . . . . 1 . . . . . . . . . . . . . . . 1 1 . . . . . . . 1 Special Weapon 12 | . . . . . . . . 1 . . 2 . . 1 . . . . . 1 . . 3 . . . 1 . . 1 . 2 Impact Weapon 2 | . 1 . . . . . 1 . . . . . . . . . . . . . . . . . . . . . . . . . Slashing Weapon 1 | . . . . . . . . . . . 1 . . . . . . . . . . . . . . . . . . . . . Piercing Weapon 1 | . . . . . . . . . . . . . . . . . . . . . . . . . . . . . . . . 1 Special Melee Weapon . | . . . . . . . . . . . . . . . . . . . . . . . . . . . . . . . . . Unidentified Prototypes 16 | . . 3 . . . . . 3 . 2 . 2 1 1 . . 1 . . . . . . . . . . . . 1 . 2 Corrupted Parts 10 | . . . . . . . 1 . . . 1 1 . . . . . . . . . . . 2 1 . . . 2 . . 2 System Corruption 43 | . . . . . . . 2 . . . 1 1 . . . . . . . . . . . 11 6 . . . 8 . . 14 Parts Lost 97 | . 5 7 1 . 3 . 3 . . 1 15 2 . . . . . 5 . . . . 5 4 5 2 3 . 3 1 . 32 Power 9 | . 1 1 . . 1 . . . . . 1 . . . . . . 1 . . . . 1 . 3 . . . . . . . Propulsion 25 | . 1 2 . . 2 . . . . . 6 1 . . . . . 3 . . . . 1 . . 1 1 . 1 . . 6 Utility 26 | . 1 2 . . . . 1 . . . 3 . . . . . . 1 . . . . . 2 1 . 1 . . . . 14 Weapon 37 | . 2 2 1 . . . 2 . . 1 5 1 . . . . . . . . . . 3 2 1 1 1 . 2 1 . 12 Highest Loss Streak 12 | . 3 2 1 . 3 . 2 . . 1 7 1 . . . . . 2 . . . . 2 2 4 2 1 . 2 1 . 12 To Critical Strikes 2 | . . . . . 1 . . . . . . . . . . . . . . . . . . . . . . . . . . 1 Average Backups 17 | 4 13 14 15 14 13 11 14 14 14 15 17 19 19 19 19 19 19 19 20 19 18 18 18 16 13 14 19 18 19 19 19 19 Power 1 | . 1 . 1 1 1 . . . 1 1 . . 1 1 1 1 . 1 1 1 1 1 1 1 . . 1 2 1 2 2 3 Propulsion 2 | 2 5 1 4 4 4 2 3 2 1 . 1 . . 1 1 1 1 1 2 2 2 2 1 1 1 . 2 2 3 3 3 4 Utility 7 | . 1 2 3 3 3 3 7 6 7 7 11 12 10 10 9 9 9 9 9 8 9 10 10 9 7 6 8 9 9 10 10 6 Weapon 4 | . 5 7 6 5 4 4 2 4 3 4 1 3 5 5 5 5 5 5 5 5 3 3 3 1 1 1 4 3 3 1 . 3 Tool/Special . | . . . . . . . . . . . . . . . . . . . . . . . . . . . . . . . . . Unused Backups 68 | . 2 12 1 2 . . 2 . 1 1 . . 2 . . . 3 4 . 5 . . 1 . . . 9 . 6 2 1 14 Power 7 | . . 1 . . . . 1 . . . . . . . . . . . . . . . . . . . 1 . . . . 4 Propulsion 15 | . 2 2 . . . . 1 . . . . . 1 . . . 1 1 . 1 . . . . . . 4 . 1 . . 1 Utility 25 | . . 2 . 1 . . . . 1 1 . . 1 . . . . 3 . 2 . . 1 . . . 2 . 4 1 1 5 Weapon 18 | . . 7 1 . . . . . . . . . . . . . 2 . . 2 . . . . . . 2 . 1 . . 3 Tool/Special 3 | . . . . 1 . . . . . . . . . . . . . . . . . . . . . . . . . 1 . 1 Average Slot Usage (%) 95 | . 94 99 99 73 78 96 99 99 100 99 91 72 88 99 100 100 98 98 100 99 90 97 99 98 96 93 96 98 99 99 97 90 Engine 2 | . 13 10 11 11 7 9 5 . . . . . . . . . . . . . . . . . . . . . . . . . Core 3 | . . . . . . . . 2 7 7 6 6 6 6 6 6 11 10 11 4 . . 2 5 7 9 2 . . . . . Reactor 2 | . . . . . . . 3 4 . . . . . . . . . . . 6 10 10 7 5 1 . 6 8 8 8 8 8 Treads 1 | . 25 . . . . . . . . . . . . . . . . . . . . . . . . . . . . . . . Leg 25 | . . 32 33 33 26 27 27 30 30 29 28 7 12 28 33 33 29 27 29 29 26 26 25 26 26 22 24 26 25 26 25 26 Device 4 | . 5 3 . . . 9 9 5 4 7 . . 3 5 6 6 9 6 5 3 5 5 1 4 5 8 6 6 5 3 4 10 Storage 7 | . 14 11 11 11 11 9 9 7 7 7 7 13 9 6 6 6 5 5 5 5 5 5 5 5 5 4 4 4 4 4 4 4 Processor 10 | . . . . . . 5 9 7 7 7 11 13 13 15 20 20 17 17 17 17 15 15 15 15 15 14 14 13 13 13 13 7 Hackware 10 | . . . . . . . . 8 9 11 8 10 13 10 5 . . 3 5 11 11 15 23 18 15 14 19 21 24 26 23 17 Protection 3 | . 7 7 11 11 11 9 8 7 7 3 6 . . . . 6 5 4 5 1 . 2 1 2 3 4 1 . . . . 1 Energy Gun 5 | . 13 . . . . 11 16 7 5 3 9 3 2 11 6 6 5 4 5 4 5 5 . 4 4 4 4 4 4 4 3 2 Energy Cannon 3 | . . 10 10 6 13 14 4 4 . . . . . 2 6 6 5 5 5 4 5 5 2 4 5 4 4 4 4 4 3 . Ballistic Gun 6 | . 13 21 21 1 . . 2 3 8 13 7 3 . 1 6 6 4 2 . 1 . . 6 . . . . . 2 5 3 3 Special Weapon 2 | . . . . . . . . 3 5 4 . 3 6 2 . . . 1 . 3 4 5 4 2 . . 2 4 3 1 3 1 Peak Build Rating 185 | 7 8 22 20 21 23 31 40 50 54 55 52 50 72 79 78 78 92 92 84 118 123 127 129 130 122 137 150 153 159 160 157 185 Average Rating 79 | 5 7 16 19 16 18 29 36 47 49 52 43 45 59 76 78 78 88 84 84 100 120 125 124 124 117 133 140 152 151 153 150 163 On Entrance 78 | . 7 8 20 20 21 23 31 39 48 53 51 39 50 72 78 78 78 92 84 84 118 123 127 125 121 119 137 140 153 145 154 157 Naked Turns . | . . . . . . . . . . . . . . . . . . . . . . . . . . . . . . . . . Heaviest Build 210 | 12 30 41 39 39 39 43 50 52 51 63 67 68 63 69 76 76 89 95 91 105 107 113 112 100 110 107 117 116 116 120 119 210 Greatest Support 202 | 40 40 33 33 33 37 37 42 54 57 54 57 30 63 99 81 81 99 99 86 126 126 126 145 145 145 180 180 160 170 163 163 202 Greatest Overweight (x) 6 | . 1 1 1 1 2 1 1 1 . 1 4 6 2 . . . . 1 1 1 . . . . . . . . . . . 2 Average Overweight (x) . | . . . 1 . 1 1 . . . . 1 2 1 . . . . . 1 . . . . . . . . . . . . . Largest Inventory Capacity 25 | 8 15 15 15 15 15 15 15 15 15 20 20 20 20 20 20 20 20 20 20 20 20 20 20 20 20 20 20 20 20 20 20 25 Average Capacity 18 | 7 14 15 15 15 15 15 15 15 15 15 20 20 20 20 20 20 20 20 20 20 20 20 20 20 20 20 20 20 20 20 20 24 Most Carried 25 | 7 15 15 15 15 13 15 15 15 15 18 20 20 20 20 20 19 20 20 20 20 20 20 20 19 17 15 20 19 20 20 20 25 Average Carried 17 | 4 13 14 15 14 12 11 14 14 14 15 17 19 19 19 19 19 19 19 20 19 19 19 19 17 14 14 19 18 19 19 19 20 Final Capacity 25 | 8 15 15 15 15 15 15 15 15 15 20 20 20 20 20 20 20 20 20 20 20 20 20 20 20 20 20 20 20 20 20 20 25 Final Carried 20 | 7 15 15 15 13 10 15 15 15 15 17 17 19 20 20 19 19 20 20 20 20 19 20 19 17 14 15 20 18 20 20 20 19 Class Distribution -------------------- 35% | Botlord-Gunner 11% | Botlord-Mutant 11% | Bothacker-Gunner 9% | Bothacker-Skirmisher 8% | Scavenger-Tank 8% | Mutant 4% | Skirmisher 3% | Bothacker-Mutant Dominant Class ---------------- Mutant | -10/Materials Scavenger-Tank | -9/Materials Scavenger-Tank | -9/Mines Mutant | -9/Exiles Mutant | -8/Mines Skirmisher | -8/Materials Skirmisher | -8/Garrison Bothacker-Skirmisher | -7/Factory Bothacker-Skirmisher | -7/Garrison Bothacker-Skirmisher | -7/Factory Bothacker-Mutant | -7/Garrison Botlord-Mutant | -6/Factory Botlord-Mutant | -6/Waste Botlord-Gunner | -6/Factory Bothacker-Gunner | -6/Lower Caves Bothacker-Gunner | -6/Lower Caves Bothacker-Gunner | -5/Factory Bothacker-Gunner | -5/Garrison Botlord-Mutant | -5/Factory Botlord-Gunner | -5/Garrison Botlord-Gunner | -4/Factory Botlord-Gunner | -4/Waste Botlord-Gunner | -4/Factory Botlord-Gunner | -4/Upper Caves Botlord-Gunner | -4/Upper Caves Botlord-Gunner | -3/Research Botlord-Gunner | -3/Garrison Botlord-Gunner | -2/Research Botlord-Gunner | -2/Garrison Botlord-Gunner | -2/Research Botlord-Gunner | -2/Garrison Botlord-Gunner | -1/Access Resources | -11 -10 -9 -9 -9 -8 -8 -8 -7 -7 -7 -7 -6 -6 -6 -6 -6 -5 -5 -5 -5 -4 -4 -4 -4 -4 -3 -3 -2 -2 -2 -2 -1 ----------- Run | Yrd Mat Mat Min Exi Min Mat Gar Fac Gar Fac Gar Fac Was Fac Low Low Fac Gar Fac Gar Fac Was Fac Upp Upp Res Gar Res Gar Res Gar Acc Matter Collected 12002 | 286 119 973 137 . 85 70 517 56 379 283 631 50 477 243 62 . 168 234 . 397 . 131 379 461 194 7 810 . 485 807 559 3002 Remotely 952 | . . . . . . . . . . . . . . . . . . . . . . . . . . . . . . . . 952 Salvage Created 12579 | 153 566 1435 69 46 141 133 705 56 181 221 933 50 . 234 273 . 374 399 . 330 51 . 608 177 273 124 1005 . 660 793 169 2420 Parts 658 | 15 38 121 8 3 8 7 35 1 7 9 53 4 . 16 12 . 9 13 . 23 8 . 30 11 10 1 24 . 27 51 7 107 Haulers Intercepted 8 | . 1 5 . . . . . 1 . . . . . . . . 1 . . . . . . . . . . . . . . . Recyclers Shooed 7 | 1 . . . . 1 . . . . . . . . . . . 1 . . . . . 2 . . . . . . 1 . 1 Parts Field Recycled . | . . . . . . . . . . . . . . . . . . . . . . . . . . . . . . . . . Retrieved Matter . | . . . . . . . . . . . . . . . . . . . . . . . . . . . . . . . . . Parts Self-Destructed 28 | . . . . . . . . . . . . . . . 12 . . . . . . . . 7 9 . . . . . . . Prevented 5 | . . . . . . . . . . . . . . . . . . . . . . . . 1 4 . . . . . . . Kills | -11 -10 -9 -9 -9 -8 -8 -8 -7 -7 -7 -7 -6 -6 -6 -6 -6 -5 -5 -5 -5 -4 -4 -4 -4 -4 -3 -3 -2 -2 -2 -2 -1 ------- Run | Yrd Mat Mat Min Exi Min Mat Gar Fac Gar Fac Gar Fac Was Fac Low Low Fac Gar Fac Gar Fac Was Fac Upp Upp Res Gar Res Gar Res Gar Acc Combat Hostiles Destroyed 254 | . 15 34 6 1 3 1 16 . 3 3 26 1 . 5 7 . 4 8 . 4 . . 10 13 5 2 17 . 10 10 3 47 Melee 5 | . . . . . . . . . . . 5 . . . . . . . . . . . . . . . . . . . . . Guns 114 | . 15 19 1 . . 1 8 . 3 3 17 1 . 3 3 . 1 7 . 4 . . 5 . 1 . 4 . 2 8 1 7 Cannons 69 | . . 12 2 1 1 . 2 . . . . . . 2 3 . 3 1 . . . . 2 . 4 . 5 . 7 2 2 20 AOE 59 | . . 3 3 . 2 . 6 . . . 4 . . . . . . . . . . . 3 12 . . 6 . . . . 20 Classes Destroyed 17 | 3 3 4 . . 1 1 2 . . . . . . . . . . . . 1 . . 1 . . . . . . . . 1 Worker 18 | 1 1 2 . . 2 . . . . 1 . . . 1 . . . . . . 2 . 4 . . . . . . . . 4 Builder 3 | . . 1 . . . . . . . . . . . . . . . . . . . . . . . . . . . . . 2 Tunneler 2 | 2 . . . . . . . . . . . . . . . . . . . . . . . . . . . . . . . . Hauler 8 | . 1 5 . . . . . 1 . . . . . . . . 1 . . . . . . . . . . . . . . . Recycler 10 | 1 . 2 . . 1 1 . . . 1 . . . . . . . . . . . . . . . . . . . 1 . 3 Operator 4 | . . 3 . . . . . . . . . . . . . . . . . . 1 . . . . . . . . . . . Watcher 6 | . . 3 . . . . . . . . . . . . . . . . . . . . 1 . . . . . . . . 2 Swarmer 91 | . 6 21 6 . . . 4 . . . 11 . . 2 3 . . 4 . . . . 4 10 1 . 2 . 1 1 1 14 Grunt 56 | . 9 3 . 1 2 . 2 . . 1 8 . . . 2 . 2 1 . 2 . . 1 . 2 . 11 . 3 1 . 5 Brawler 4 | . . . . . 1 . . . . . . . . . . . . . . . . . 1 . . . . . 1 . . 1 Duelist 5 | . . . . . . . 1 . . . . . . . 1 . . . . . . . . . . . 1 . . . . 2 Protector 1 | . . . . . . . . . . . . . . . . . . . . . . . . . . . . . . . . 1 Sentry 32 | . . 10 . . . . 3 . 2 . 1 . . 1 . . 2 3 . . . . . . 1 1 2 . 2 1 1 2 Specialist 1 | . . . . . . . . . . . . . . . . . . . . . . . 1 . . . . . . . . . Hunter 14 | . . . . . . 1 . . 1 . 2 . . . . . . . . . . . . . . . . . . . . 10 Programmer 47 | . . . . . . . 6 . . 2 4 1 . 2 1 . . . . 2 . . 3 2 1 . . . 3 7 1 12 Behemoth 4 | . . . . . . . . . . . . . . . . . . . . 1 . . . 1 . 1 1 . . . . . Best Kill Streak 10 | 2 4 7 3 1 6 2 4 1 1 2 9 1 . 2 4 . 2 5 . 2 2 . 8 5 4 2 7 . 1 3 1 10 Combat Bots Only 9 | . 4 7 3 1 3 1 4 . 1 1 9 1 . 2 4 . 2 5 . 2 . . 3 5 4 2 7 . 1 3 1 8 Max Kills in Single Turn 5 | 1 1 3 3 1 1 1 4 1 1 1 2 1 . 1 1 . 1 1 . 1 1 . 3 3 1 1 3 . 1 1 1 5 Gunslinging . | . . . . . . . . . . . . . . . . . . . . . . . . . . . . . . . . . Exploded 4 | . . 3 3 . 1 . 4 . . . 2 . . . . . . . . . . . 2 3 . . 3 . . . . 4 Melee 1 | . . . . . . . . . . . 1 . . . . . . . . . . . . . . . . . . . . . Uniques/NPCs Destroyed . | . . . . . . . . . . . . . . . . . . . . . . . . . . . . . . . . . Combat | -11 -10 -9 -9 -9 -8 -8 -8 -7 -7 -7 -7 -6 -6 -6 -6 -6 -5 -5 -5 -5 -4 -4 -4 -4 -4 -3 -3 -2 -2 -2 -2 -1 -------- Run | Yrd Mat Mat Min Exi Min Mat Gar Fac Gar Fac Gar Fac Was Fac Low Low Fac Gar Fac Gar Fac Was Fac Upp Upp Res Gar Res Gar Res Gar Acc Hostile Shots Fired 1716 | . 85 142 17 19 11 4 90 11 48 35 208 35 . 49 20 . 18 41 . 17 . . 145 53 57 46 81 . 47 68 20 349 Missed 591 | . 19 45 7 5 1 3 27 6 22 19 69 16 . 21 5 . 7 9 . 8 . . 59 22 24 18 25 . 17 26 7 104 Deflected 1 | . . . . . . . . . . . . . . . . . . . . . . . . . . 1 . . . . . . Hits 1125 | . 66 97 10 14 10 1 63 5 26 16 139 19 . 28 15 . 11 32 . 9 . . 86 31 33 28 56 . 30 42 13 245 Melee 16 | . . . . . 3 . 1 . . . . . . . . . . . . . . . . . . . 2 . . . . 10 Projectile 1109 | . 66 97 10 14 7 1 62 5 26 16 139 19 . 28 15 . 11 32 . 9 . . 86 31 33 28 54 . 30 42 13 235 AOE 3 | . . . . . . . . . . 1 . . . . . . . . . . . . 1 . . . . . . . . 1 Critical Strikes 54 | . . 2 . 1 2 . 4 . 1 1 7 . . 1 . . 1 1 . 1 . . 7 2 1 . . . 1 5 . 16 Part Disruptions 2 | . . . . . . . . . . . . . . . . . . . . . . . . . . . . . . 1 . 1 Damage Taken 21831 | . 743 1160 97 212 232 22 983 37 368 336 2018 189 . 321 224 . 233 750 . 228 40 . 1784 774 612 735 1320 . 730 992 330 6361 Core 2108 | . 134 112 . 16 5 . 176 19 43 73 312 38 . 22 52 . 25 57 . 19 20 . 165 41 19 . 78 . . 149 18 515 Absorbed by Shields 144 | . . . . . . . . . . . . . . . . . . 6 . . . . . . . . 56 . . . . 82 Redirected to Shielding 8 | . 4 4 . . . . . . . . . . . . . . . . . . . . . . . . . . . . . . Regen/Repaired (Parts) 578 | . . . . . . . . . . . . . . 86 . . . . . . . . . 127 . . . . . . . 365 Core Remaining (%) 74 | 100 46 . . . 66 . 68 . . . 36 . . . . 86 . . . 89 . . . . 78 . 94 . . . 88 67 Volleys Fired 1059 | 16 61 101 9 5 9 3 50 11 22 22 69 10 . 76 15 8 31 30 . 44 12 3 52 16 16 21 62 . 56 57 36 136 Largest 4 | 2 2 3 3 2 1 3 3 1 3 3 3 3 . 3 3 1 3 3 . 3 2 1 3 2 3 3 3 . 4 4 4 4 Hottest 284 | 60 60 114 111 136 68 163 181 20 83 83 133 98 . 243 199 90 204 204 . 204 201 7 201 180 224 217 259 . 279 284 278 278 Shots Fired 2150 | 20 120 285 21 10 9 9 118 11 39 39 151 18 . 97 46 8 58 72 . 60 18 3 96 21 43 38 115 . 106 129 53 337 Gun 1189 | 20 119 204 12 . . 6 75 5 34 31 142 12 . 27 30 . 30 42 . 16 8 . 64 5 11 4 28 . 39 75 17 133 Cannon 767 | . . 79 8 10 4 3 40 . . . . 2 . 65 16 8 27 30 . 28 4 . 16 5 32 34 72 . 55 42 8 179 Launcher 49 | . 1 2 1 . 5 . 3 . 2 . 5 . . . . . . . . . . . 4 11 . . 2 . . . . 13 Special 145 | . . . . . . . . 6 3 8 4 4 . 5 . . 1 . . 16 6 3 12 . . . 13 . 12 12 28 12 Kinetic 945 | 16 63 192 12 . . . 21 . 20 25 70 4 . 3 15 . 12 21 . 7 2 . 56 1 17 21 26 . 33 48 10 250 Thermal 784 | . 21 91 8 10 4 3 68 5 14 6 52 4 . 84 31 8 45 51 . 37 10 . 24 5 9 4 34 . 61 69 15 11 Explosive 45 | . 1 2 1 . 5 . 3 . 2 . 5 . . . . . . . . . . . . 11 . . 2 . . . . 13 Electromagnetic 231 | 4 35 . . . . 6 26 . . . 20 6 . 5 . . . . . . . . 4 4 17 13 40 . . . . 51 Robot Hit Streak 23 | 7 10 13 3 3 9 6 10 8 7 10 11 9 . 8 7 . 9 10 . 9 4 1 7 4 7 9 23 . 9 8 6 8 Robot Miss Streak 11 | 2 5 10 4 1 . 1 6 1 2 2 5 1 . 3 5 . 2 2 . 3 2 2 3 2 2 1 2 . 2 5 4 11 Penetration Max 1 | . . . . . . . . . . . 1 . . . . . . 1 . . . . 1 . . . . . . 1 . 1 Secondary Targets 8 | . 2 . . . . . . . . . 3 . . 1 . . . . . . . . 1 . . . . . . . . 1 Max Gunslinging Chain 1 | . 1 . . . . . . . . . 1 . . 1 . . . . . . . . 1 . . . . . . . . 1 Shots Hit Robots 1136 | 14 69 135 9 6 8 7 64 10 24 24 95 12 . 27 24 . 35 43 . 27 10 1 59 8 27 33 67 . 62 67 32 137 Core Hits 524 | 5 28 69 8 1 10 4 32 1 11 8 45 4 . 9 19 . 17 14 . 8 4 . 31 16 10 3 28 . 17 23 7 92 Critical Kills 13 | . . 1 . . . . . . . . 1 . . . 1 . . 1 . . . . 3 1 . . . . 1 2 . 2 Critical Parts Destroyed 14 | . . . . . . . . . 2 . 3 . . . . . . . . . 1 . 7 . . . . . . . . 1 Critical Strikes 73 | . . 1 . . . . 2 . 3 . 7 . . 1 3 . 1 3 . 2 2 . 12 1 3 4 7 . 1 2 . 18 Burn 22 | . . . . . . . 2 . 1 . 2 . . . 2 . 1 1 . 2 1 . 2 . 1 1 6 . . . . . Meltdown 3 | . . 1 . . . . . . . . . . . . 1 . . . . . . . . 1 . . . . . . . . Destroy 26 | . . . . . . . . . 2 . 4 . . . . . . 2 . . 1 . 10 . . . . . 1 2 . 4 Blast 17 | . . . . . . . . . . . . . . . . . . . . . . . . . 2 2 . . . . . 13 Corrupt 4 | . . . . . . . . . . . . . . 1 . . . . . . . . . . . 1 1 . . . . 1 Sever 1 | . . . . . . . . . . . 1 . . . . . . . . . . . . . . . . . . . . . Melee Attacks 60 | . 3 . . . . . 13 6 2 . 19 2 . 14 . . . . . 1 . . . . . . . . . . . . Impact 24 | . 3 . . . . . 13 6 2 . . . . . . . . . . . . . . . . . . . . . . . Slashing 36 | . . . . . . . . . . . 19 2 . 14 . . . . . 1 . . . . . . . . . . . . Piercing . | . . . . . . . . . . . . . . . . . . . . . . . . . . . . . . . . . Sneak Attacks 1 | . . . . . . . . . . . . . . 1 . . . . . . . . . . . . . . . . . . Combat Hostiles . | . . . . . . . . . . . . . . . . . . . . . . . . . . . . . . . . . Follow-up Attacks . | . . . . . . . . . . . . . . . . . . . . . . . . . . . . . . . . . Damage Inflicted 37285 | 132 713 2727 245 149 608 124 1539 75 534 464 2717 108 . 620 638 . 913 1220 . 626 440 . 1917 2087 874 1069 2564 . 2189 2362 483 9148 Guns 13974 | 132 704 1294 44 . . 83 759 75 432 451 1730 105 . 344 374 . 496 680 . 246 75 . 1132 44 199 73 572 . 683 1358 291 1598 Cannons 13145 | . . 1014 68 149 81 41 502 . . . . . . 212 264 . 417 540 . 380 85 . 421 130 675 996 1216 . 1506 1004 192 3252 Explosions 9604 | . . 394 121 . 523 . 278 . 102 . 689 . . . . . . . . . 280 . 364 1913 . . 776 . . . . 4164 Melee 328 | . . . . . . . . . . . 264 . . 64 . . . . . . . . . . . . . . . . . . Ramming 234 | . 9 25 12 . 4 . . . . 13 34 3 . . . . . . . . . . . . . . . . . . . 134 Kinetic 12896 | 94 298 1225 44 . . . 185 . 259 406 810 20 . 7 203 . 198 401 . 91 28 . 1002 . 398 676 732 . 671 868 191 4089 Thermal 11885 | . 144 1083 68 149 81 41 861 75 173 45 768 69 . 509 435 . 715 819 . 535 132 . 551 130 180 73 701 . 1518 1494 292 244 Explosive 9109 | . . 294 121 . 523 . 278 . 102 . 658 . . . . . . . . . 280 . . 1913 . . 776 . . . . 4164 Electromagnetic 2833 | 38 262 100 . . . 83 215 . . . 183 16 . 40 . . . . . . . . 364 44 296 320 355 . . . . 517 Impact . | . . . . . . . . . . . . . . . . . . . . . . . . . . . . . . . . . Slashing 328 | . . . . . . . . . . . 264 . . 64 . . . . . . . . . . . . . . . . . . Piercing . | . . . . . . . . . . . . . . . . . . . . . . . . . . . . . . . . . Highest Corruption 41 | . 1 1 1 2 7 1 16 . . 1 3 1 1 2 2 2 . . . 1 . . 4 16 23 . . . 11 20 20 41 Average Corruption 7 | . 1 1 1 1 3 1 7 . . 1 1 1 1 1 2 2 . . . 1 . . 3 5 19 . . . 1 15 20 35 Corruption Purged . | . . . . . . . . . . . . . . . . . . . . . . . . . . . . . . . . . Corruption Blocked . | . . . . . . . . . . . . . . . . . . . . . . . . . . . . . . . . . Effects 416 | . . 6 5 5 1 6 47 . . . 25 7 8 23 3 4 . . . 7 . . 15 14 12 . . . 11 71 26 120 Message Errors 100 | . . 3 . 2 . 2 7 . . . 5 2 4 8 . 1 . . . 1 . . 2 3 1 . . . 6 20 3 30 Matter Fused 108 | . . 1 2 . . 2 17 . . . 8 1 3 3 2 2 . . . 2 . . 3 3 2 . . . 2 21 6 28 Heat Flow Errors 45 | . . 1 . . 1 1 6 . . . 2 1 . 4 . . . . . . . . 2 1 1 . . . 1 9 4 11 Energy Discharges 36 | . . 1 1 1 . 1 5 . . . 5 2 . 2 . . . . . . . . 1 1 3 . . . . 2 3 8 Parts Rejected 2 | . . . . . . . . . . . . . . . . . . . . . . . . . . . . . 1 . . 1 Parts Fused 3 | . . . . . . . . . . . . . . 2 . . . . . . . . 1 . . . . . . . . . Data Loss (minor) 59 | . . . 1 1 . . 6 . . . 2 1 1 2 . 1 . . . 3 . . 5 5 . . . . 1 11 6 13 Data Loss (major) 11 | . . . 1 . . . 1 . . . 2 . . . . . . . . . . . 1 1 1 . . . . 1 . 3 Misfires 14 | . . . . . . . 3 . . . 1 . . . 1 . . . . 1 . . . . 3 . . . . 1 1 3 Alerts 6 | . . . . 1 . . 1 . . . . . . 1 . . . . . . . . . . . . . . . . 2 1 Misdirections 3 | . . . . . . . . . . . . . . . . . . . . . . . . . . . . . . 3 . . Weapon Failures 29 | . . . . . . . 1 . . . . . . 1 . . . . . . . . . . 1 . . . . 3 1 22 Overload Shots 8 | . . . . . . . . . 2 1 5 . . . . . . . . . . . . . . . . . . . . . Effects 1 | . . . . . . . . . . . 1 . . . . . . . . . . . . . . . . . . . . . Short Circuit 1 | . . . . . . . . . . . 1 . . . . . . . . . . . . . . . . . . . . . Overflow Damage 1141 | . . 16 . 10 6 . 61 . . . . . . . . . 3 5 . 20 . . 52 281 22 . 38 . 149 . . 478 Projectiles 511 | . . 12 . 10 . . 40 . . . . . . . . . 3 5 . 20 . . 52 . 22 . 38 . 149 . . 160 Explosions 630 | . . 4 . . 6 . 21 . . . . . . . . . . . . . . . . 281 . . . . . . . 318 Melee . | . . . . . . . . . . . . . . . . . . . . . . . . . . . . . . . . . Knockbacks 24 | . . . 1 . . . . . . . . . . . . . . . . . . . . . 2 . 6 . 1 . . 14 Impact 2 | . . . 1 . . . . . . . . . . . . . . . . . . . . . . . . . . . . 1 Kinetic 21 | . . . . . . . . . . . . . . . . . . . . . . . . . 2 . 5 . 1 . . 13 Secondary 1 | . . . . . . . . . . . . . . . . . . . . . . . . . . . 1 . . . . . Self-Inflicted Damage 845 | . . 35 22 . 48 . 54 . 49 . 50 . . . . . . . . . 40 . 10 86 . . 130 . . . . 321 Shots 18 | . . 1 1 . 3 . 2 . 1 . 2 . . . . . . . . . 1 . 1 1 . . 2 . . . . 3 Rammed 1 | . 1 . . . . . . . . . . . . . . . . . . . . . . . . . . . . . . . Targets Rammed 24 | . 2 7 3 . 2 . . . . 1 1 1 . . . . . . . . . . . . . . . . . 1 . 6 Kicked 22 | . . 7 3 . 2 . . . . 1 1 1 . . . . . . . . . . . . . . . . . 1 . 6 Crushed 1 | . 1 . . . . . . . . . . . . . . . . . . . . . . . . . . . . . . . Highest Temperature 419 | 40 111 396 203 282 192 261 395 . 12 . 218 200 . 380 181 . 410 329 . 282 228 . 385 419 382 162 252 . 323 392 260 387 Average Temperature 100 | 22 36 88 103 125 48 86 122 . 6 . 50 44 . 109 71 . 151 119 . 93 84 . 149 151 116 79 77 . 132 110 93 116 Received Heat Transfer 2112 | . 324 258 . 54 63 . 90 9 54 36 261 30 . 24 27 . 99 108 . 27 . . 51 36 63 18 219 . 18 9 36 198 Effects 42 | . . 5 . 2 . 1 1 . . . . . . . . . 3 . . . . . 3 4 . . 3 . 3 1 . 16 Shutdowns 11 | . . 1 . . . . . . . . . . . . . . 1 . . . . . 2 1 . . . . . . . 6 Energy Bleed 1 | . . . . . . 1 . . . . . . . . . . . . . . . . . . . . . . . . . . Interference 21 | . . 3 . 2 . . . . . . . . . . . . 2 . . . . . . 3 . . 3 . 3 . . 5 Matter Decay 3 | . . 1 . . . . . . . . . . . . . . . . . . . . 1 . . . . . . . . 1 Short Circuit 1 | . . . . . . . . . . . . . . . . . . . . . . . . . . . . . . . . 1 Damage (minor) 5 | . . . . . . . 1 . . . . . . . . . . . . . . . . . . . . . . 1 . 3 Siege Activations . | . . . . . . . . . . . . . . . . . . . . . . . . . . . . . . . . . Martial Activations . | . . . . . . . . . . . . . . . . . . . . . . . . . . . . . . . . . Shielding Activations 1 | . . . . . . . . . . . . . . . . . . . . . . . . . . 1 . . . . . . Total Turns 24 | . . . . . . . . . . . . . . . . . . . . . . . . . . 24 . . . . . . Longest Duration 24 | . . . . . . . . . . . . . . . . . . . . . . . . . . 24 . . . . . . Robots Disrupted . | . . . . . . . . . . . . . . . . . . . . . . . . . . . . . . . . . Combat Hostiles . | . . . . . . . . . . . . . . . . . . . . . . . . . . . . . . . . . Robots Corrupted 3 | . . . . . . . . . . . . . . . . . . . . . . . . . . 2 1 . . . . . Combat Hostiles 3 | . . . . . . . . . . . . . . . . . . . . . . . . . . 2 1 . . . . . Parts Fried 3 | . . . . . . 1 . . . . . . . . . . . . . . . . . . 1 . 1 . . . . . Impact Corruptions . | . . . . . . . . . . . . . . . . . . . . . . . . . . . . . . . . . Robots Melted 6 | . . 1 . . . . . . . . . . . . 1 . 1 . . . . . . 1 . . 1 . 1 . . . Combat Hostiles 4 | . . . . . . . . . . . . . . . 1 . . . . . . . . 1 . . 1 . 1 . . . Parts Melted 41 | . . 5 . . 1 . 1 . . . . 1 . 4 4 . 2 4 . 3 1 . 3 1 . . 4 . . 3 2 2 Heat Transferred 17484 | . 325 1852 111 222 148 74 1361 148 407 74 1567 111 . 744 807 . 1205 1368 . 781 222 . 666 111 296 185 1443 . 1369 1369 296 222 Parts Sabotaged . | . . . . . . . . . . . . . . . . . . . . . . . . . . . . . . . . . Parts Stolen . | . . . . . . . . . . . . . . . . . . . . . . . . . . . . . . . . . Parts Stripped . | . . . . . . . . . . . . . . . . . . . . . . . . . . . . . . . . . Power Chain Reactions 1 | . . . . . . . . . . . 1 . . . . . . . . . . . . . . . . . . . . . Alert | -11 -10 -9 -9 -9 -8 -8 -8 -7 -7 -7 -7 -6 -6 -6 -6 -6 -5 -5 -5 -5 -4 -4 -4 -4 -4 -3 -3 -2 -2 -2 -2 -1 ------- Run | Yrd Mat Mat Min Exi Min Mat Gar Fac Gar Fac Gar Fac Was Fac Low Low Fac Gar Fac Gar Fac Was Fac Upp Upp Res Gar Res Gar Res Gar Acc Maximum Alert Level 3 | . . 2 . . . . 2 1 2 1 3 1 . . . . . 3 2 3 2 . . . . . 3 2 3 2 . 3 Low Security (%) 61 | 100 100 33 100 . 100 100 36 72 40 97 11 79 100 100 . . 100 19 . . . 100 100 . . 100 36 . . 88 100 69 Level 1 21 | . . 66 . . . . 47 27 28 2 42 20 . . . . . 38 . 52 46 . . . . . 27 . 6 5 . 5 Level 2 12 | . . . . . . . 15 . 31 . 44 . . . . . . 28 100 37 53 . . . . . 14 100 74 5 . 9 Level 3 4 | . . . . . . . . . . . 1 . . . . . . 13 . 10 . . . . . . 21 . 18 . . 15 Level 4 . | . . . . . . . . . . . . . . . . . . . . . . . . . . . . . . . . . Level 5 . | . . . . . . . . . . . . . . . . . . . . . . . . . . . . . . . . . High Security . | . . . . . . . . . . . . . . . . . . . . . . . . . . . . . . . . . Max Security . | . . . . . . . . . . . . . . . . . . . . . . . . . . . . . . . . . Peak Influence 1037 | 5 138 404 118 . 73 35 539 282 402 210 717 375 . 71 . . 42 829 434 708 469 153 91 . . 62 759 426 766 430 108 1037 Initial 434 | . . 14 43 . . 26 . 282 36 210 . 375 . . . . . . 434 291 371 153 . . . . 24 426 319 430 35 . Average 189 | 1 45 235 35 . 26 4 236 141 251 17 413 90 . 9 . . 10 383 426 436 412 75 12 . . 13 338 426 560 80 51 254 Influence Increases 10996 | 20 456 1155 215 42 108 43 569 92 466 147 907 32 . 211 170 . 125 869 2 557 118 . 343 300 110 66 945 . 617 340 134 1837 Destroy 0b10 Robot/C 5420 | . 300 680 180 40 60 20 320 60 260 60 520 20 . 100 140 . 80 160 . 80 . . 200 260 100 40 360 . 200 200 60 920 Destroy 0b10 Robot/NC 265 | 20 10 80 . . 15 5 5 5 . 10 . . . 5 . . 5 . . . 15 . 25 . . . . . . 5 . 60 Destroy Leader 878 | . 62 186 20 . 10 10 10 12 20 20 50 10 . 40 30 . 22 10 . 10 . . 32 40 10 20 10 . 30 30 10 174 Allied During Kill 232 | . . . 10 2 . . . 10 62 3 . . . 3 . . . . . 5 1 . 33 . . . 17 . 37 12 2 35 Successful Hack 118 | . 16 24 . . . 8 . . . 5 . . . 9 . . . . . 14 . . . . . . 14 . 28 . . . Select Force Hacks 60 | . 60 . . . . . . . . . . . . . . . . . . . . . . . . . . . . . . . Disable Machine 390 | . . 75 . . . . . . 30 45 15 . . 15 . . . . . . 30 . 15 . . . 30 . 15 15 . 105 Anti-Garrison Action 1850 | . . . . . . . 150 . 50 . 150 . . . . . . 650 . 350 . . . . . . 300 . 150 . 50 . Destroy Structure 1348 | . 8 20 5 . 23 . 54 5 29 4 82 2 . 39 . . 18 34 2 83 72 . 38 . . 6 154 . 97 63 12 498 Partial Spotted 30 | . . . . . . . . . . . 15 . . . . . . . . . . . . . . . . . . . . 15 Lose Combat Pursuer 405 | . . 90 . . . . 30 . 15 . 75 . . . . . . 15 . 15 . . . . . . 60 . 60 15 . 30 Influence Decreases 9969 | 20 421 1077 312 58 40 111 30 579 116 549 190 749 . 210 105 66 125 40 415 265 387 439 343 282 128 34 218 333 277 1059 181 810 Entered New Map 2913 | . . 21 70 16 . 42 . 257 16 192 . 342 . . 1 13 . . 395 125 337 286 . . 4 . 8 333 107 336 12 . Time Decay 4524 | 20 371 686 232 28 10 69 . 302 . 197 . 397 . 202 104 53 125 . 20 . 50 153 256 242 74 34 . . . 476 . 423 Lost Part 853 | . 50 70 10 . 30 . 30 . . . 150 10 . . . . . 40 . . . . 30 30 50 . 30 . 30 10 . 283 Lost Ally 1079 | . . . . 14 . . . 20 100 10 40 . . 8 . . . . . 140 . . 57 10 . . 180 . 140 87 169 104 Purge Threat 600 | . . 300 . . . . . . . 150 . . . . . . . . . . . . . . . . . . . 150 . . Squads Dispatched 40 | . 4 1 . . . . . 3 . 3 . 2 . 4 . . 1 . . . 1 . 6 . . . . . . 6 . 9 Investigation 4 | . 3 . . . . . . . . 1 . . . . . . . . . . . . . . . . . . . . . . Extermination 22 | . . . . . . . . 1 . 2 . 2 . 4 . . . . . . . . 4 . . . . . . 5 . 4 Reinforcement 11 | . 1 1 . . . . . 2 . . . . . . . . 1 . . . 1 . 2 . . . . . . 1 . 2 Assault 2 | . . . . . . . . . . . . . . . . . . . . . . . . . . . . . . . . 2 Garrison 1 | . . . . . . . . . . . . . . . . . . . . . . . . . . . . . . . . 1 Intercept . | . . . . . . . . . . . . . . . . . . . . . . . . . . . . . . . . . Searches Triggered . | . . . . . . . . . . . . . . . . . . . . . . . . . . . . . . . . . Construction Impeded 2 | . . . . . . . . 1 . . . . . . . . . . . . . . 1 . . . . . . . . . Haulers Reinforced 4 | . . . . . . . . 1 . . . . . . . . 1 . . . . . . . . . . . . 1 . 1 Active Scanning Responses . | . . . . . . . . . . . . . . . . . . . . . . . . . . . . . . . . . Cargo Convoy Interrupts . | . . . . . . . . . . . . . . . . . . . . . . . . . . . . . . . . . Alert ID Control Effect 69 | . . . . . . . . . . 1 . 3 . 5 . . . . . 15 . . 14 . . . 5 . 11 7 6 2 Stealth | -11 -10 -9 -9 -9 -8 -8 -8 -7 -7 -7 -7 -6 -6 -6 -6 -6 -5 -5 -5 -5 -4 -4 -4 -4 -4 -3 -3 -2 -2 -2 -2 -1 --------- Run | Yrd Mat Mat Min Exi Min Mat Gar Fac Gar Fac Gar Fac Was Fac Low Low Fac Gar Fac Gar Fac Was Fac Upp Upp Res Gar Res Gar Res Gar Acc Distress Signals 13 | . 2 5 . . . . . . . 1 . . . 1 . . . 1 . . . . 1 . . 1 . . . 1 . . Communications Jammed 44 | . . . . . . . . . . . . . . . . . . . . . . . . . . . . . . 3 . 41 Distress Signals 44 | . . . . . . . . . . . . . . . . . . . . . . . . . . . . . . 3 . 41 Times Spotted 449 | . 20 59 10 4 3 3 16 7 17 9 27 6 . 10 8 . 4 8 . 21 2 1 28 14 6 4 31 . 34 27 14 56 Peak Tracking Total 12 | . 7 7 4 2 3 1 4 3 3 2 8 2 . 3 4 . 2 4 . 12 1 1 7 5 5 4 7 . 7 3 3 7 Tactical Retreats 21 | . . 4 . . . . 2 . 1 . 4 . . . . . . 1 . 1 . . . . . . 3 . 2 1 . 2 Traps | -11 -10 -9 -9 -9 -8 -8 -8 -7 -7 -7 -7 -6 -6 -6 -6 -6 -5 -5 -5 -5 -4 -4 -4 -4 -4 -3 -3 -2 -2 -2 -2 -1 ------- Run | Yrd Mat Mat Min Exi Min Mat Gar Fac Gar Fac Gar Fac Was Fac Low Low Fac Gar Fac Gar Fac Was Fac Upp Upp Res Gar Res Gar Res Gar Acc Traps Triggered 39 | . 2 2 . . . 1 3 . 4 1 2 1 . 2 . . . 3 . 4 1 . . . . . 7 . 2 2 . 2 Indirectly . | . . . . . . . . . . . . . . . . . . . . . . . . . . . . . . . . . Trap Hack Attempts . | . . . . . . . . . . . . . . . . . . . . . . . . . . . . . . . . . Triggered . | . . . . . . . . . . . . . . . . . . . . . . . . . . . . . . . . . Disarmed . | . . . . . . . . . . . . . . . . . . . . . . . . . . . . . . . . . Reprogrammed . | . . . . . . . . . . . . . . . . . . . . . . . . . . . . . . . . . Reused . | . . . . . . . . . . . . . . . . . . . . . . . . . . . . . . . . . Traps Extracted . | . . . . . . . . . . . . . . . . . . . . . . . . . . . . . . . . . Installed . | . . . . . . . . . . . . . . . . . . . . . . . . . . . . . . . . . Triggered . | . . . . . . . . . . . . . . . . . . . . . . . . . . . . . . . . . Objects Rigged 1 | . . . . . . . 1 . . . . . . . . . . . . . . . . . . . . . . . . . Exploded 1 | . . . . . . . 1 . . . . . . . . . . . . . . . . . . . . . . . . . Machines | -11 -10 -9 -9 -9 -8 -8 -8 -7 -7 -7 -7 -6 -6 -6 -6 -6 -5 -5 -5 -5 -4 -4 -4 -4 -4 -3 -3 -2 -2 -2 -2 -1 ---------- Run | Yrd Mat Mat Min Exi Min Mat Gar Fac Gar Fac Gar Fac Was Fac Low Low Fac Gar Fac Gar Fac Was Fac Upp Upp Res Gar Res Gar Res Gar Acc Machines Disabled 47 | . . 5 . 1 . . 2 . 3 3 2 . . 1 . . . 3 . 5 2 . 1 . . . 6 . 4 1 1 7 Max in Single Turn 2 | . . 1 . . . . 1 . 2 1 1 . . 1 . . . 1 . 1 2 . . . . . 1 . 1 1 1 2 Garrison Access 4 | . . . . . . . . . . . . . . 1 . . . . . . . . . . . . . . . . . 3 Garrison Relay 17 | . . . . . . . 1 . 1 . 1 . . . . . . 2 . 4 . . . . . . 4 . 3 . 1 . Phase Generator 1 | . . . . . . . . . . . . . . . . . . 1 . . . . . . . . . . . . . . Machines Repaired . | . . . . . . . . . . . . . . . . . . . . . . . . . . . . . . . . . Machines Dismantled 19 | . . . . . . . . . . . 2 . . . . . . 3 . 4 . . . . . . 5 . 3 . 1 1 Machines Sabotaged . | . . . . . . . . . . . . . . . . . . . . . . . . . . . . . . . . . Overloaded Fab Kills . | . . . . . . . . . . . . . . . . . . . . . . . . . . . . . . . . . Hacking | -11 -10 -9 -9 -9 -8 -8 -8 -7 -7 -7 -7 -6 -6 -6 -6 -6 -5 -5 -5 -5 -4 -4 -4 -4 -4 -3 -3 -2 -2 -2 -2 -1 --------- Run | Yrd Mat Mat Min Exi Min Mat Gar Fac Gar Fac Gar Fac Was Fac Low Low Fac Gar Fac Gar Fac Was Fac Upp Upp Res Gar Res Gar Res Gar Acc Machines Accessed 61 | . 9 9 . 2 . 3 1 4 . 5 2 . . 6 1 . 1 . 1 2 . . 2 . . 1 2 1 2 3 1 3 Terminals 41 | . 7 9 . . . 2 1 3 . 3 2 . . 4 . . . . . 2 . . 1 . . . 2 . 2 2 1 . Fabricators . | . . . . . . . . . . . . . . . . . . . . . . . . . . . . . . . . . Repair Stations . | . . . . . . . . . . . . . . . . . . . . . . . . . . . . . . . . . Recycling Units 5 | . 2 . . . . . . . . 1 . . . 1 . . . . . . . . 1 . . . . . . . . . Scanalyzers . | . . . . . . . . . . . . . . . . . . . . . . . . . . . . . . . . . Garrison Access 12 | . . . . . . 1 . 1 . 1 . . . 1 . . 1 . 1 . . . . . . 1 . 1 . 1 . 3 Total Hacks 130 | . 24 33 . 2 . 6 1 5 . 11 4 . . 12 1 . 1 . 1 5 . . 6 . . 1 5 1 2 5 1 3 Successful 61 | . 11 13 . 2 . 3 . 3 . 4 1 . . 7 1 . 1 . 1 2 . . 2 . . 1 1 1 2 2 . 3 Failed 69 | . 13 20 . . . 3 1 2 . 7 3 . . 5 . . . . . 3 . . 4 . . . 4 . . 3 1 . Catastrophic 13 | . 1 1 . . . 1 1 1 . 2 1 . . 1 . . . . . 1 . . 1 . . . . . . 1 1 . Database Lockouts . | . . . . . . . . . . . . . . . . . . . . . . . . . . . . . . . . . Manual 51 | . 24 18 . 1 . 3 . . . 1 . . . 1 . . . . . . . . . . . . . . . 3 . . Terminals 107 | . 22 33 . . . 5 1 4 . 7 4 . . 10 . . . . . 5 . . 4 . . . 5 . 2 4 1 . Fabricators . | . . . . . . . . . . . . . . . . . . . . . . . . . . . . . . . . . Repair Stations . | . . . . . . . . . . . . . . . . . . . . . . . . . . . . . . . . . Recycling Units 8 | . 2 . . . . . . . . 3 . . . 1 . . . . . . . . 2 . . . . . . . . . Scanalyzers . | . . . . . . . . . . . . . . . . . . . . . . . . . . . . . . . . . Garrison Access 12 | . . . . . . 1 . 1 . 1 . . . 1 . . 1 . 1 . . . . . . 1 . 1 . 1 . 3 Terminal Hacks 32 | . 3 7 . 2 . 2 . 2 . 2 1 . . 5 1 . . . . 2 . . 1 . . . 1 . 2 1 . . Record 2 | . . . . 1 . . . . . . . . . 1 . . . . . . . . . . . . . . . . . . Part Schematic 1 | . . . . . . 1 . . . . . . . . . . . . . . . . . . . . . . . . . . Robot Analysis 3 | . 2 1 . . . . . . . . . . . . . . . . . . . . . . . . . . . . . . Prototype ID Bank 2 | . 1 1 . . . . . . . . . . . . . . . . . . . . . . . . . . . . . . Open Door 1 | . . . . . . . . . . . . . . . 1 . . . . . . . . . . . . . . . . . Branch Access Points 1 | . . 1 . . . . . . . . . . . . . . . . . . . . . . . . . . . . . . Emergency Access Points 5 | . . . . . . . . . . . 1 . . 1 . . . . . 1 . . . . . . 1 . 1 . . . Alert Level 3 | . . 2 . . . . . 1 . . . . . . . . . . . . . . . . . . . . . . . . Unreport Threat 4 | . . 2 . . . . . . . 1 . . . . . . . . . . . . . . . . . . . 1 . . Locate Traps 1 | . . . . . . . . . . . . . . 1 . . . . . . . . . . . . . . . . . . Hauler Manifests 2 | . . . . . . . . . . . . . . 1 . . . . . . . . 1 . . . . . . . . . Zone Layout 4 | . . . . . . 1 . 1 . 1 . . . 1 . . . . . . . . . . . . . . . . . . Garrison Registry 2 | . . . . . . . . . . . . . . . . . . . . 1 . . . . . . . . 1 . . . Proto ID Catalog 1 | . . . . 1 . . . . . . . . . . . . . . . . . . . . . . . . . . . . Fabricator Hacks . | . . . . . . . . . . . . . . . . . . . . . . . . . . . . . . . . . Repair Station Hacks . | . . . . . . . . . . . . . . . . . . . . . . . . . . . . . . . . . Recycling Unit Hacks 3 | . . . . . . . . . . 1 . . . 1 . . . . . . . . 1 . . . . . . . . . Retrieve Components 3 | . . . . . . . . . . 1 . . . 1 . . . . . . . . 1 . . . . . . . . . Scanalyzer . | . . . . . . . . . . . . . . . . . . . . . . . . . . . . . . . . . Garrison Access Hacks 12 | . . . . . . 1 . 1 . 1 . . . 1 . . 1 . 1 . . . . . . 1 . 1 . 1 . 3 Unlock Access 8 | . . . . . . 1 . 1 . 1 . . . . . . 1 . 1 . . . . . . 1 . 1 . 1 . . Seal Access 4 | . . . . . . . . . . . . . . 1 . . . . . . . . . . . . . . . . . 3 Unauthorized Hacks 14 | . 8 6 . . . . . . . . . . . . . . . . . . . . . . . . . . . . . . Terminals 12 | . 6 6 . . . . . . . . . . . . . . . . . . . . . . . . . . . . . . Botnet 2 | . 1 1 . . . . . . . . . . . . . . . . . . . . . . . . . . . . . . Skim 10 | . 5 5 . . . . . . . . . . . . . . . . . . . . . . . . . . . . . . Fabricators . | . . . . . . . . . . . . . . . . . . . . . . . . . . . . . . . . . Repair Stations . | . . . . . . . . . . . . . . . . . . . . . . . . . . . . . . . . . Recycling Units 2 | . 2 . . . . . . . . . . . . . . . . . . . . . . . . . . . . . . . Tunnel 2 | . 2 . . . . . . . . . . . . . . . . . . . . . . . . . . . . . . . Scanalyzers . | . . . . . . . . . . . . . . . . . . . . . . . . . . . . . . . . . Garrison Access . | . . . . . . . . . . . . . . . . . . . . . . . . . . . . . . . . . Data Cores Recovered 3 | . . 2 . . . . . . . . . . . . . . . . . . 1 . . . . . . . . . . . Used 2 | . . 2 . . . . . . . . . . . . . . . . . . . . . . . . . . . . . . Hacking Detections 40 | . 7 9 . . . 2 1 3 . 4 1 . . 4 . . . . . 1 . . 1 . . . 2 1 1 2 1 . Full Trace Events 1 | . . . . . . . . . . . . . . . . . . . . 1 . . . . . . . . . . . . Feedback Events . | . . . . . . . . . . . . . . . . . . . . . . . . . . . . . . . . . Feedback Blocked . | . . . . . . . . . . . . . . . . . . . . . . . . . . . . . . . . . Robot Schematics Acquired . | . . . . . . . . . . . . . . . . . . . . . . . . . . . . . . . . . Robots Built . | . . . . . . . . . . . . . . . . . . . . . . . . . . . . . . . . . Authchips . | . . . . . . . . . . . . . . . . . . . . . . . . . . . . . . . . . Time . | . . . . . . . . . . . . . . . . . . . . . . . . . . . . . . . . . Total Robot Build Rating . | . . . . . . . . . . . . . . . . . . . . . . . . . . . . . . . . . Part Schematics Acquired 1 | . . . . . . 1 . . . . . . . . . . . . . . . . . . . . . . . . . . Parts Built . | . . . . . . . . . . . . . . . . . . . . . . . . . . . . . . . . . Authchips . | . . . . . . . . . . . . . . . . . . . . . . . . . . . . . . . . . Time . | . . . . . . . . . . . . . . . . . . . . . . . . . . . . . . . . . Total Part Build Rating . | . . . . . . . . . . . . . . . . . . . . . . . . . . . . . . . . . Parts Repaired . | . . . . . . . . . . . . . . . . . . . . . . . . . . . . . . . . . Time . | . . . . . . . . . . . . . . . . . . . . . . . . . . . . . . . . . Parts Recycled . | . . . . . . . . . . . . . . . . . . . . . . . . . . . . . . . . . Recycled Matter . | . . . . . . . . . . . . . . . . . . . . . . . . . . . . . . . . . Retrieved Matter . | . . . . . . . . . . . . . . . . . . . . . . . . . . . . . . . . . Retrieved Components 5 | . . . . . . . . . . . . . . 2 . . . . . . . . 3 . . . . . . . . . Parts Scanalyzed . | . . . . . . . . . . . . . . . . . . . . . . . . . . . . . . . . . Part Schematics Acquired . | . . . . . . . . . . . . . . . . . . . . . . . . . . . . . . . . . Parts Damaged . | . . . . . . . . . . . . . . . . . . . . . . . . . . . . . . . . . Bothacking | -11 -10 -9 -9 -9 -8 -8 -8 -7 -7 -7 -7 -6 -6 -6 -6 -6 -5 -5 -5 -5 -4 -4 -4 -4 -4 -3 -3 -2 -2 -2 -2 -1 ------------ Run | Yrd Mat Mat Min Exi Min Mat Gar Fac Gar Fac Gar Fac Was Fac Low Low Fac Gar Fac Gar Fac Was Fac Upp Upp Res Gar Res Gar Res Gar Acc Used RIF Installer 9 | . . . . . . . 2 . 1 . 1 . . . . . . 1 . 1 . . . . . . 1 . 1 . 1 . Coupler Efficiency 1 | . . . . . . . . . . . . . . . . . . . . . . . . . . . . . . . 1 . Hotswap 1 | . . . . . . . . . . . . . . . . . . 1 . . . . . . . . . . . . . . Command Fork 1 | . . . . . . . . . . . . . . . . . . . . 1 . . . . . . . . . . . . Signal Jammer 1 | . . . . . . . . . . . . . . . . . . . . . . . . . . . . . 1 . . . Robot Detection 1 | . . . . . . . 1 . . . . . . . . . . . . . . . . . . . . . . . . . Watcher Feeds 1 | . . . . . . . . . . . . . . . . . . . . . . . . . . . 1 . . . . . Alert ID Control 1 | . . . . . . . . . 1 . . . . . . . . . . . . . . . . . . . . . . . Autoassimilate 1 | . . . . . . . . . . . 1 . . . . . . . . . . . . . . . . . . . . . Robots Hacked 91 | . . . . . . . . 4 2 5 . 2 . 4 . . 1 1 . 13 2 1 9 . . 1 10 . 11 7 11 7 Non-combat 10 | . . . . . . . . . . 3 . . . 3 . . 1 . . . 1 . 1 . . . . . . . . 1 Combat 81 | . . . . . . . . 4 2 2 . 2 . 1 . . . 1 . 13 1 1 8 . . 1 10 . 11 7 11 6 Autoassimilated 11 | . . . . . . . . . . . . . . . . . . 1 . 3 . . . . . 1 2 . 3 1 . . Robot Hacks Applied 85 | . . . . . . . . 4 2 5 . 2 . 4 . . 1 . . 11 2 2 9 . . . 8 . 8 7 13 7 parse_system 7 | . . . . . . . . . . . . . . . . . . . . 1 1 1 2 . . . . . . . 2 . no_distress 1 | . . . . . . . . . . . . . . . . . 1 . . . . . . . . . . . . . . . find_chute 1 | . . . . . . . . . . . . . . . . . . . . . 1 . . . . . . . . . . . drop_inventory 2 | . . . . . . . . . . 1 . . . 1 . . . . . . . . . . . . . . . . . . map_route 1 | . . . . . . . . . . . . . . 1 . . . . . . . . . . . . . . . . . . ignore_targets 1 | . . . . . . . . . . . . . . . . . . . . . . 1 . . . . . . . . . . reboot_propulsion 1 | . . . . . . . . . . . . . . . . . . . . . . . . . . . . . . . . 1 overload_power 3 | . . . . . . . . . . . . . . . . . . . . 1 . . . . . . . . 2 . . . wipe_record 1 | . . . . . . . . . . . . . . . . . . . . . . . . . . . . . . 1 . . reboot_system 1 | . . . . . . . . . . . . 1 . . . . . . . . . . . . . . . . . . . . go_dormant 1 | . . . . . . . . 1 . . . . . . . . . . . . . . . . . . . . . . . . overwrite_iff 23 | . . . . . . . . . 2 . . . . . . . . . . 6 . . 2 . . . 3 . 2 3 5 . formatsys_low 4 | . . . . . . . . . . 1 . . . 1 . . . . . . . . 1 . . . . . . . . 1 formatsys_high 38 | . . . . . . . . 3 . 3 . 1 . 1 . . . . . 3 . . 4 . . . 5 . 4 3 6 5 Relay Couplers Released 81 | . . . . . . . 3 . 5 3 8 . . . . . . 8 . 19 . . . . . . 16 . 13 . 5 1 Machine Destruction 72 | . . . . . . . 3 . 5 . 5 . . . . . . 8 . 16 . . . . . . 16 . 13 . 5 1 Programmers 9 | . . . . . . . . . . 3 3 . . . . . . . . 3 . . . . . . . . . . . . Attached 22 | . . . . . . . . 2 . 3 . 2 . . . . . 1 . 3 1 . 2 . . . 2 . 3 . 1 2 Fabnet Peak Effective % . | . . . . . . . . . . . . . . . . . . . . . . . . . . . . . . . . . Robots Rewired 4 | . . . . . . . . . . . 2 . . . . . . . . . 2 . . . . . . . . . . . Allies Hacked 9 | . . . . . . . . . . 1 . . . . . . . . . . . . . . . . . . 2 2 2 2 Hacks Repelled . | . . . . . . . . . . . . . . . . . . . . . . . . . . . . . . . . . Allies | -11 -10 -9 -9 -9 -8 -8 -8 -7 -7 -7 -7 -6 -6 -6 -6 -6 -5 -5 -5 -5 -4 -4 -4 -4 -4 -3 -3 -2 -2 -2 -2 -1 -------- Run | Yrd Mat Mat Min Exi Min Mat Gar Fac Gar Fac Gar Fac Was Fac Low Low Fac Gar Fac Gar Fac Was Fac Upp Upp Res Gar Res Gar Res Gar Acc Total Allies 89 | . . . 3 . . . . 3 4 4 2 1 . 2 . . . 1 . 11 2 . 7 . . 1 11 . 9 8 13 7 Largest Group 5 | . . . 3 2 . . . 3 4 3 2 1 1 2 . . . 1 1 4 3 3 3 1 . 1 5 2 3 3 4 3 Highest-Rated Group 304 | . . . 40 32 . . . 64 172 90 62 32 32 55 . . . 85 85 192 152 152 189 14 . 64 304 94 259 186 247 180 Highest-Rated Ally 148 | . . . 16 16 . . . 32 62 32 31 32 32 32 . . . 85 85 85 56 56 142 14 . 64 116 47 148 64 95 69 Total Orders 22 | . . . . . . . . . . . . . . 4 . . . 2 . 2 . . 3 2 . . 6 . 2 . . 1 STAY 11 | . . . . . . . . . . . . . . 1 . . . 1 . 1 . . 2 . . . 5 . 1 . . . FOLLOW 6 | . . . . . . . . . . . . . . 1 . . . 1 . 1 . . 1 . . . 1 . 1 . . . AID 5 | . . . . . . . . . . . . . . 2 . . . . . . . . . 2 . . . . . . . 1 Ally Attacks 497 | . . . 16 13 . . . 21 46 8 6 4 . 12 . . . . . 72 2 11 57 . . . 54 . 57 36 52 30 Total Damage 16178 | . . . 121 165 . . . 411 1201 381 84 202 . 344 . . . . . 1602 25 541 1811 . . . 2352 . 2017 1509 2070 1342 Kills 91 | . . . 3 1 . . . 3 11 2 . 3 . 5 . . . . . 16 . 1 14 . . . 6 . 11 7 6 2 Allies Corrupted 8 | . . . . . . . . . . . . . . . . . . . . . . . 2 . . . . . 2 . 1 3 Allies Melted 2 | . . . . . . . . . . . . . . . . . . . . . . . . . . . 2 . . . . . Intel | -11 -10 -9 -9 -9 -8 -8 -8 -7 -7 -7 -7 -6 -6 -6 -6 -6 -5 -5 -5 -5 -4 -4 -4 -4 -4 -3 -3 -2 -2 -2 -2 -1 ------- Run | Yrd Mat Mat Min Exi Min Mat Gar Fac Gar Fac Gar Fac Was Fac Low Low Fac Gar Fac Gar Fac Was Fac Upp Upp Res Gar Res Gar Res Gar Acc Active Infowar (turns) 16452 | 91 465 883 . . . . . . . 2 183 . . 789 458 215 412 1560 49 1534 114 329 1659 464 246 256 1538 13 1138 1481 436 2137 Optics 13581 | . . . . . . . . . . . . . . 789 458 215 412 1560 49 1534 114 329 1659 464 246 256 1538 13 1138 1481 436 890 IFF 1 | . . . . . . . . . . . . . . . . . 1 . . . . . . . . . . . . . . . Seismic 1439 | 91 465 883 . . . . . . . . . . . . . . . . . . . . . . . . . . . . . . Jamming 1432 | . . . . . . . . . . 2 183 . . . . . . . . . . . . . . . . . . . . 1247 Robot Analysis Total 3 | . 2 1 . . . . . . . . . . . . . . . . . . . . . . . . . . . . . . Derelict Logs Recovered 4 | . . . 1 . . . . . . . . . . . 1 . . . . . . . . 1 1 . . . . . . . Drone Launches . | . . . . . . . . . . . . . . . . . . . . . . . . . . . . . . . . . Drone Recoveries . | . . . . . . . . . . . . . . . . . . . . . . . . . . . . . . . . . Exploration | -11 -10 -9 -9 -9 -8 -8 -8 -7 -7 -7 -7 -6 -6 -6 -6 -6 -5 -5 -5 -5 -4 -4 -4 -4 -4 -3 -3 -2 -2 -2 -2 -1 ------------- Run | Yrd Mat Mat Min Exi Min Mat Gar Fac Gar Fac Gar Fac Was Fac Low Low Fac Gar Fac Gar Fac Was Fac Upp Upp Res Gar Res Gar Res Gar Acc Turns Passed 32112 | 208 1309 3093 837 557 77 594 1424 666 870 1439 1683 1786 1174 1878 458 215 412 1560 49 1534 114 329 1659 571 246 256 1538 13 1154 1481 436 2492 Spaces Moved 18781 | 102 640 1453 422 401 28 311 652 522 715 1234 726 592 586 1361 335 164 259 752 25 940 71 235 1123 429 160 129 1009 9 775 1065 288 1268 Core 4 | 4 . . . . . . . . . . . . . . . . . . . . . . . . . . . . . . . . Treads 738 | 98 640 . . . . . . . . . . . . . . . . . . . . . . . . . . . . . . . Legs 18014 | . . 1453 422 401 28 311 652 522 715 1234 726 567 586 1361 335 164 259 752 25 940 71 235 1123 429 160 129 1009 9 775 1065 288 1268 Wheels . | . . . . . . . . . . . . . . . . . . . . . . . . . . . . . . . . . Hover 25 | . . . . . . . . . . . . 25 . . . . . . . . . . . . . . . . . . . . Flight . | . . . . . . . . . . . . . . . . . . . . . . . . . . . . . . . . . Fastest Speed 50 | 50 160 120 190 120 100 183 100 105 97 97 105 190 113 110 122 122 116 116 190 120 120 120 120 120 120 124 120 120 118 118 103 110 Average Speed 145 | 155 171 184 190 133 187 183 179 105 103 105 188 292 197 116 122 122 116 184 190 134 120 120 120 120 120 124 122 120 119 118 112 146 Slowest Speed 420 | 160 240 190 190 190 260 183 186 186 105 183 400 420 270 122 122 122 116 192 190 190 120 120 124 120 120 124 124 120 120 118 118 258 Overloaded Moves . | . . . . . . . . . . . . . . . . . . . . . . . . . . . . . . . . . Propulsion Burnouts . | . . . . . . . . . . . . . . . . . . . . . . . . . . . . . . . . . Robots Hopped . | . . . . . . . . . . . . . . . . . . . . . . . . . . . . . . . . . Potential Cave-ins 6 | . . . . . . . . . . . . . . 4 . . 2 . . . . . . . . . . . . . . . Cave-ins Triggered . | . . . . . . . . . . . . . . . . . . . . . . . . . . . . . . . . . Exploration Rate (%) 45 | 6 84 95 83 60 9 25 76 13 64 33 68 15 95 27 55 22 5 55 2 81 4 90 36 71 22 7 87 . 66 22 33 41 Regions Visited 32 Branch Regions 7 Pre-discovered Areas 6 | . 2 2 . 1 . . . . . . . . . . . . . . . . . . . 1 . . . . . . . . Known Exits Taken 12 | . 1 1 1 . 1 1 . 1 . 1 . . . . . . 1 . 1 . . . . . . 1 . 1 . 1 . . Unknown Exits Taken 8 | 1 . . . 1 . . . . . . . . . 1 1 1 . . . . . . 1 1 1 . . . . . . . Scrap Searched 7 | . . . . . . . . . . . . . . . 4 . . . . . . . . 1 2 . . . . . . . Spaces Dug 162 | . 8 . 7 . . . 12 6 2 . 11 2 . 39 . 4 5 . . 3 . . 2 50 . . . . . 9 . 2 Terrain Destroyed 801 | . 8 14 7 . 47 . 40 6 11 3 41 2 . 71 7 8 15 3 . 5 45 . 12 141 6 3 48 . 9 25 3 221 Melee 38 | . 2 . . . . . 11 6 2 . 1 2 . 13 . . . . . 1 . . . . . . . . . . . . Projectile 257 | . . . . . . . 3 . . 3 4 . . 58 7 8 15 3 . 4 . . 12 2 6 3 7 . 9 25 3 85 AOE 506 | . 6 14 7 . 47 . 26 . 9 . 36 . . . . . . . . . 45 . . 139 . . 41 . . . . 136 Terrain Rammed . | . . . . . . . . . . . . . . . . . . . . . . . . . . . . . . . . . Walls Destroyed . | . . . . . . . . . . . . . . . . . . . . . . . . . . . . . . . . . Machines Disabled . | . . . . . . . . . . . . . . . . . . . . . . . . . . . . . . . . . Actions | -11 -10 -9 -9 -9 -8 -8 -8 -7 -7 -7 -7 -6 -6 -6 -6 -6 -5 -5 -5 -5 -4 -4 -4 -4 -4 -3 -3 -2 -2 -2 -2 -1 --------- Run | Yrd Mat Mat Min Exi Min Mat Gar Fac Gar Fac Gar Fac Was Fac Low Low Fac Gar Fac Gar Fac Was Fac Upp Upp Res Gar Res Gar Res Gar Acc Total 21646 | 131 736 1664 440 416 42 328 803 623 812 1340 869 627 601 1537 350 171 327 843 26 1136 86 280 1344 458 181 190 1193 11 929 1202 374 1576 Wait 669 | . 8 22 . . . 3 25 63 26 47 4 1 . 53 . . 13 . 1 63 . 22 135 . 1 29 32 . 30 24 16 51 Move 18757 | 101 639 1452 421 400 27 310 651 522 714 1234 725 592 585 1360 334 163 259 751 25 939 71 234 1122 428 159 129 1008 9 774 1065 287 1267 Hop . | . . . . . . . . . . . . . . . . . . . . . . . . . . . . . . . . . Pick Up 216 | 7 12 28 1 3 . 7 9 3 11 7 10 3 3 5 . . 9 9 . 10 . 2 7 1 . 5 20 . 16 7 2 19 Fast Attach 114 | 7 2 5 1 . . 1 7 5 . 5 2 8 5 8 . . 3 4 . 3 . 1 2 2 2 . 3 . 4 10 10 14 Attach 89 | . 3 11 . 2 3 2 3 2 4 2 12 1 . 1 . . 1 2 . 2 1 . 4 2 3 4 2 2 2 2 . 16 Detach 16 | . . 1 . . . . 1 . 1 . 2 1 . 1 . . 1 1 . . . . 1 . . 1 . . 2 1 2 . Swap 243 | . 4 9 3 . 1 2 19 5 10 11 12 5 2 9 1 . 1 10 . 22 2 2 12 9 . 1 27 . 18 16 8 22 Drop 219 | . 2 28 2 6 . . 14 6 12 9 2 2 4 9 . . 9 11 . 19 . 1 7 . . . 19 . 18 19 10 10 Fire 1059 | 16 61 101 9 5 9 3 50 11 22 22 69 10 . 76 15 8 31 30 . 44 12 3 52 16 16 21 62 . 56 57 36 136 Melee 60 | . 3 . . . . . 13 6 2 . 19 2 . 14 . . . . . 1 . . . . . . . . . . . . Ram . | . . . . . . . . . . . . . . . . . . . . . . . . . . . . . . . . . Kick 22 | . . 7 3 . 2 . . . . 1 1 1 . . . . . . . . . . . . . . . . . 1 . 6 Crush 2 | . 2 . . . . . . . . . . . . . . . . . . . . . . . . . . . . . . . Escape Stasis 55 | . . . . . . . 10 . 10 . . . . . . . . 10 . 20 . . . . . . . . . . . 5 Rewire 24 | . . . . . . . . . . 2 . 1 2 1 . . . . . 1 . 15 2 . . . . . . . . . Trap 1 | . . . . . . . 1 . . . . . . . . . . . . . . . . . . . . . . . . . Miscellaneous 100 | . . . . . . . . . . . 11 . . . . . . 15 . 12 . . . . . . 20 . 9 . 3 30 Route ------- -11/Scrapyard -10/Materials (discovered 5 exits: *Mat x3 / [*Min] / *Sub) -9/Materials (discovered 4 exits: *Mat x3 / *Min) -9/Mines (discovered 4 exits: *Mat x2 / *Exi / [*Zio]) -9/Exiles (discovered 2 exits: [*Min x2]) -8/Mines -8/Materials (discovered 4 exits: Fac / Sto x2 / Gar) -8/Garrison (discovered 2 exits: *Fac x2) -7/Factory -7/Garrison (discovered 2 exits: *Fac x2) -7/Factory (discovered 3 exits: [*Fac] / [*Low] / Gar) -7/Garrison (discovered 3 exits: [*Fac x2] / [*Fac]) -6/Factory -6/Waste -6/Factory (discovered 2 exits: *Fac / *Low) -6/Lower Caves -6/Lower Caves -5/Factory (discovered 2 exits: [*Fac] / Gar) -5/Garrison (discovered 2 exits: *Fac x2) -5/Factory -5/Garrison (discovered 3 exits: [*Fac x3]) -4/Factory -4/Waste -4/Factory (discovered 3 exits: *Res x2 / [*Upp]) -4/Upper Caves -4/Upper Caves -3/Research -3/Garrison (discovered 3 exits: *Res x3) -2/Research -2/Garrison (discovered 3 exits: *Res x3) -2/Research (discovered 2 exits: *Acc / Gar) -2/Garrison -1/Access To Epsilon Eridani History --------- Turn | Location | Event 13 | -11/Scrapyard | Discovered new exit (range 15) 209 | -11/Scrapyard | Entered Materials 302 | -10/Materials | Build established: Mutant 543 | -10/Materials | Discovered new exit (range 9) 650 | -10/Materials | Discovered new exit (range 7) 739 | -10/Materials | Lost 3 parts (1u2w) 895 | -10/Materials | Core integrity fell below 50% 917 | -10/Materials | Discovered new exit (range 13) 1166 | -10/Materials | Identified exit to Subcaves 1166 | -10/Materials | Identified exit to Materials 1201 | -10/Materials | Learned 2 Mines zone layouts 1238 | -10/Materials | Learned 4 Subcaves zone layouts 1240 | -10/Materials | Learned Materials emergency access door positions 1243 | -10/Materials | Learned 4 Recycling zone layouts 1257 | -10/Materials | Learned 4 Subcaves zone layouts 1518 | -10/Materials | Entered another Materials area 1518 | -9/Materials | Evolved 2 slots: Propulsion x1, Weapon x1 1519 | -9/Materials | Identified exit to Materials 1861 | -9/Materials | Build established: Gunner 1975 | -9/Materials | Destroyed 7 combat bots 2936 | -9/Materials | Identified exit to Mines 2936 | -9/Materials | Learned location of 1 exit from Materials 3015 | -9/Materials | Build established: Scavenger-Tank 3124 | -9/Materials | Learned Storage emergency access door positions 3221 | -9/Materials | Learned Recycling recycling unit intel 3347 | -9/Materials | Learned Storage garrison access intel 4611 | -9/Materials | Entered Mines 4613 | -9/Mines | Identified exit to Exiles 4841 | -9/Mines | Discovered exit to Materials (range 8) 4885 | -9/Mines | A weapon hastily lodged in a ceiling crevice suddenly fell to the ground 4924 | -9/Mines | A Derelict revealed a hidden shortcut to a safe place 4971 | -9/Mines | Assisted by bots powering up and referring to "LRC-V3" 5336 | -9/Mines | Deemed a non-threat by the Exiles lab entrance 5448 | -9/Mines | Entered Exiles 5448 | -9/Exiles | Accompanied by 2 allies 5472 | -9/Exiles | Discovered new exit (range 15) 5484 | -9/Exiles | Met 8R-AWN 5501 | -9/Exiles | Met EX-HEX 5551 | -9/Exiles | Met EX-DEC 5556 | -9/Exiles | Learned location of Zion (-7) 5577 | -9/Exiles | Met EX-BIN 5643 | -9/Exiles | Aligned with FarCom system 5644 | -9/Exiles | Given EX-Vault access code 5671 | -9/Exiles | Opened EX-Vault 5686 | -9/Exiles | Found PSU Rigger 5690 | -9/Exiles | Found Field Lobotomy Kit 5716 | -9/Exiles | Warned to stay clear of 0b10 Research branches 5723 | -9/Exiles | Exiles lab attacked by MAIN.C 5768 | -9/Exiles | Build established: Mutant 5876 | -9/Exiles | P-60 Hacker assimilated allied Trooper 2a 5986 | -9/Exiles | Discovered new exit (range 11) 6005 | -9/Exiles | Left Exiles lab with PSU Rigger 6005 | -9/Exiles | Entered Mines 6035 | -8/Mines | Discovered exit to Materials (range 6) 6082 | -8/Mines | Entered Materials 6082 | -8/Materials | Evolved 2 slots: Utility x2 6083 | -8/Materials | Identified exit to Storage 6084 | -8/Materials | Identified exit to Factory 6089 | -8/Materials | Lost 3 parts (1p2n) 6218 | -8/Materials | Identified exit to Garrison 6367 | -8/Materials | Build established: Skirmisher 6676 | -8/Materials | Entered Garrison 6886 | -8/Garrison | Triggered checkpoint 7088 | -8/Garrison | Triggered checkpoint 7252 | -8/Garrison | Triggered checkpoint 7333 | -8/Garrison | Discovered exit to Factory (range 13) 7614 | -8/Garrison | Triggered checkpoint 7677 | -8/Garrison | Installed Relay Interface Framework 7712 | -8/Garrison | Discovered exit to Factory (range 10) 7814 | -8/Garrison | Triggered checkpoint 7929 | -8/Garrison | Garrison Relay disabled 7936 | -8/Garrison | System corruption reached 10% 8014 | -8/Garrison | Expanded RIF knowledge: Robot Detection 8100 | -8/Garrison | Entered Factory 8100 | -7/Factory | Evolved 2 slots: Propulsion x1, Utility x1 8276 | -7/Factory | Build established: Bothacker-Skirmisher 8738 | -7/Factory | Identified exit to Garrison 8766 | -7/Factory | Entered Garrison 8766 | -7/Garrison | Accompanied by 2 allies 8949 | -7/Garrison | Triggered checkpoint 9013 | -7/Garrison | Garrison Relay disabled 9083 | -7/Garrison | Found embedded Infiltrators 9113 | -7/Garrison | Triggered checkpoint 9140 | -7/Garrison | Triggered checkpoint 9209 | -7/Garrison | Discovered new exit (range 14) 9239 | -7/Garrison | Triggered checkpoint 9384 | -7/Garrison | Triggered checkpoint 9474 | -7/Garrison | Discovered new exit (range 12) 9524 | -7/Garrison | Expanded RIF knowledge: Alert ID Control 9636 | -7/Garrison | Entered Factory 10542 | -7/Factory | Lost 3 allies 10554 | -7/Factory | Discovered new exit (range 15) 10745 | -7/Factory | Discovered new exit (range 11) 11072 | -7/Factory | Identified exit to Garrison 11075 | -7/Factory | Entered Garrison 11145 | -7/Garrison | Triggered checkpoint 11236 | -7/Garrison | Discovered new exit (range 5) 11342 | -7/Garrison | Lost 7 parts (3n2u2w) 11344 | -7/Garrison | Destroyed 9 combat bots 11603 | -7/Garrison | Build established: Bothacker-Mutant 11658 | -7/Garrison | Triggered checkpoint 11707 | -7/Garrison | Core integrity fell below 50% 12042 | -7/Garrison | Build established: Bothacker-Gunner 12207 | -7/Garrison | Garrison Relay disabled 12241 | -7/Garrison | Triggered checkpoint 12324 | -7/Garrison | Discovered new exit (range 11) 12489 | -7/Garrison | Triggered checkpoint 12587 | -7/Garrison | Build established: Bothacker-Mutant 12618 | -7/Garrison | Expanded RIF knowledge: Autoassimilate 12704 | -7/Garrison | Discovered new exit (range 12) 12705 | -7/Garrison | Lost 3 parts (2n1u) 12758 | -7/Garrison | Entered Factory 12758 | -6/Factory | Evolved 2 slots: Propulsion x1, Utility x1 13089 | -6/Factory | Build established: Botlord-Gunner 13153 | -6/Factory | Discovered new exit (range 13) 13742 | -6/Factory | Build established: Botlord-Mutant 14544 | -6/Factory | Sucked down chute 14544 | -6/Factory | Entered Waste 14544 | -6/Waste | The area was eerily silent 14609 | -6/Waste | 1 allies followed down the chute 15207 | -6/Waste | Discovered new exit (range 13) 15718 | -6/Waste | Entered Factory 15718 | -6/Factory | Accompanied by 1 ally 15805 | -6/Factory | Build established: Botlord-Gunner 16732 | -6/Factory | Discovered new exit (range 6) 17031 | -6/Factory | Discovered new exit (range 4) 17124 | -6/Factory | Build established: Bothacker-Gunner 17596 | -6/Factory | Entered Lower Caves 17673 | -6/Lower Caves | Learned Factory emergency access door positions 17674 | -6/Lower Caves | Encountered a Warlord checkpoint 17992 | -6/Lower Caves | Discovered new exit (range 9) 18054 | -6/Lower Caves | Entered another Lower Caves area 18246 | -6/Lower Caves | Discovered new exit (range 14) 18269 | -6/Lower Caves | Entered Factory 18269 | -5/Factory | Evolved 2 slots: Power x1, Utility x1 18587 | -5/Factory | Discovered new exit (range 16) 18681 | -5/Factory | Identified exit to Garrison 18681 | -5/Factory | Entered Garrison 18791 | -5/Garrison | Triggered checkpoint 18952 | -5/Garrison | Warlord forces raided the area 18955 | -5/Garrison | Triggered checkpoint 18970 | -5/Garrison | Phase Generator disabled 19055 | -5/Garrison | Triggered checkpoint 19066 | -5/Garrison | Lost 3 allies 19078 | -5/Garrison | Discovered new exit (range 3) 19159 | -5/Garrison | Lost 6 allies 19209 | -5/Garrison | Triggered checkpoint 19254 | -5/Garrison | Lost 3 allies 19374 | -5/Garrison | Spotted B-75 Beast 19375 | -5/Garrison | Autoassimilated Beast 6a with RIF 19572 | -5/Garrison | Garrison Relay disabled 19653 | -5/Garrison | Garrison Relay disabled 19796 | -5/Garrison | Expanded RIF knowledge: Hotswap 19809 | -5/Garrison | Discovered new exit (range 12) 20179 | -5/Garrison | Build established: Botlord-Mutant 20241 | -5/Garrison | Entered Factory 20241 | -5/Factory | Accompanied by 1 ally 20289 | -5/Factory | Identified exit to Garrison 20290 | -5/Factory | Entered Garrison 20290 | -5/Garrison | Accompanied by 1 ally 20430 | -5/Garrison | Triggered checkpoint 20577 | -5/Garrison | Build established: Botlord-Gunner 20690 | -5/Garrison | Discovered new exit (range 68) 20690 | -5/Garrison | Discovered new exit (range 77) 20690 | -5/Garrison | Discovered new exit (range 56) 20830 | -5/Garrison | Triggered checkpoint 20840 | -5/Garrison | Lost 5 allies 21044 | -5/Garrison | Expanded RIF knowledge: Command Fork 21090 | -5/Garrison | Destroyed Beast 6a 21189 | -5/Garrison | Garrison Relay disabled 21310 | -5/Garrison | Garrison Relay disabled 21425 | -5/Garrison | Spotted B-86 Titan 21629 | -5/Garrison | Garrison Relay disabled 21656 | -5/Garrison | Garrison Relay disabled 21824 | -5/Garrison | Entered Factory 21824 | -4/Factory | Accompanied by 1 ally 21824 | -4/Factory | Evolved 2 slots: Utility x2 21938 | -4/Factory | Sucked down chute 21938 | -4/Factory | Entered Waste 21938 | -4/Waste | The area was eerily silent 21998 | -4/Waste | 4 allies followed down the chute 22008 | -4/Waste | A Compactor rumbled back to life 22012 | -4/Waste | Spotted C-40 Crusher 22140 | -4/Waste | Discovered new exit (range 22) 22267 | -4/Waste | Entered Factory 22267 | -4/Factory | Accompanied by 3 allies 22351 | -4/Factory | Lost 3 allies 22703 | -4/Factory | Discovered new exit (range 5) 22840 | -4/Factory | Spotted B-86 Titan 23413 | -4/Factory | Discovered new exit (range 20) 23480 | -4/Factory | Discovered new exit (range 21) 23926 | -4/Factory | Entered Upper Caves 23926 | -4/Upper Caves | Accompanied by 1 ally 24196 | -4/Upper Caves | Spotted B-86 Titan 24231 | -4/Upper Caves | Destroyed B-86 Titan 24262 | -4/Upper Caves | Learned location of Testing (-3) 24445 | -4/Upper Caves | Discovered new exit (range 14) 24476 | -4/Upper Caves | Attracted the attention of an 0b10 checkpoint 24496 | -4/Upper Caves | System corruption reached 10% 24497 | -4/Upper Caves | Entered another Upper Caves area 24503 | -4/Upper Caves | Attracted the attention of an 0b10 checkpoint 24540 | -4/Upper Caves | Lost 4 parts (2p1u1w) 24542 | -4/Upper Caves | Learned 4 Research zone layouts 24724 | -4/Upper Caves | Discovered new exit (range 5) 24743 | -4/Upper Caves | Entered Research 24743 | -3/Research | Evolved 2 slots: Propulsion x1, Utility x1 24827 | -3/Research | Spotted B-86 Titan 24926 | -3/Research | Destroyed B-86 Titan 24997 | -3/Research | Identified exit to Garrison 24999 | -3/Research | Entered Garrison 24999 | -3/Garrison | Accompanied by 1 ally 25021 | -3/Garrison | Expanded RIF knowledge: Watcher Feeds 25080 | -3/Garrison | Triggered checkpoint 25108 | -3/Garrison | Garrison Relay disabled 25357 | -3/Garrison | Spotted B-86 Titan 25391 | -3/Garrison | Destroyed B-86 Titan 25416 | -3/Garrison | Lost 4 allies 25496 | -3/Garrison | Spotted B-86 Titan 25498 | -3/Garrison | Assimilated Titan 8a with formatsys_high 25503 | -3/Garrison | Triggered checkpoint 25575 | -3/Garrison | Destroyed 7 combat bots 25611 | -3/Garrison | Triggered checkpoint 25691 | -3/Garrison | Discovered new exit (range 11) 25731 | -3/Garrison | Triggered checkpoint 25829 | -3/Garrison | Rescued a captive Derelict 25844 | -3/Garrison | Garrison Relay disabled 25919 | -3/Garrison | Triggered checkpoint 25954 | -3/Garrison | Discovered new exit (range 7) 25997 | -3/Garrison | Garrison Relay disabled 26113 | -3/Garrison | Triggered checkpoint 26173 | -3/Garrison | Garrison Relay disabled 26263 | -3/Garrison | Triggered checkpoint 26343 | -3/Garrison | Triggered checkpoint 26365 | -3/Garrison | Discovered new exit (range 14) 26537 | -3/Garrison | Entered Research 26537 | -2/Research | Accompanied by 2 allies 26537 | -2/Research | Evolved 2 slots: Utility x1, Weapon x1 26550 | -2/Research | Identified exit to Garrison 26550 | -2/Research | Entered Garrison 26550 | -2/Garrison | Accompanied by 2 allies 26600 | -2/Garrison | Triggered checkpoint 26654 | -2/Garrison | Garrison Relay disabled 26830 | -2/Garrison | Discovered new exit (range 82) 26830 | -2/Garrison | Discovered new exit (range 50) 26830 | -2/Garrison | Discovered new exit (range 89) 26906 | -2/Garrison | Spotted B-90 Cyclops 26918 | -2/Garrison | Triggered checkpoint 26918 | -2/Garrison | Triggered checkpoint 27031 | -2/Garrison | Lost 3 allies 27105 | -2/Garrison | Triggered checkpoint 27193 | -2/Garrison | Expanded RIF knowledge: Signal Jamming 27250 | -2/Garrison | Triggered checkpoint 27295 | -2/Garrison | Found Unknown Device 27295 | -2/Garrison | Identified Adv. Force Booster 27384 | -2/Garrison | Found Unknown Hackware 27387 | -2/Garrison | Found Unknown Hackware 27389 | -2/Garrison | Found Unknown Hackware 27391 | -2/Garrison | Found Unknown Hackware 27472 | -2/Garrison | Triggered checkpoint 27485 | -2/Garrison | Garrison Relay disabled 27620 | -2/Garrison | Garrison Relay disabled 27702 | -2/Garrison | System corruption reached 10% 27704 | -2/Garrison | Entered Research 27704 | -2/Research | Accompanied by 3 allies 28809 | -2/Research | Discovered new exit (range 18) 28842 | -2/Research | P-80 Master assimilated allied Enforcer 9d 28893 | -2/Research | Spotted B-90 Cyclops 28946 | -2/Research | Found Prototype Device 28946 | -2/Research | Identified Thermal Barrier 29185 | -2/Research | Identified exit to Garrison 29185 | -2/Research | Entered Garrison 29226 | -2/Garrison | Expanded RIF knowledge: Coupler Efficiency 29246 | -2/Garrison | Triggered checkpoint 29268 | -2/Garrison | Found embedded Infiltrators 29304 | -2/Garrison | Garrison Relay disabled 29395 | -2/Garrison | Spotted B-90 Cyclops 29403 | -2/Garrison | Triggered checkpoint 29409 | -2/Garrison | Triggered checkpoint 29430 | -2/Garrison | Allies destroyed B-90 Cyclops 29432 | -2/Garrison | Triggered checkpoint 29484 | -2/Garrison | Lost 6 allies 29542 | -2/Garrison | Triggered checkpoint 29585 | -2/Garrison | P-80 Master assimilated allied Enforcer 9g 29607 | -2/Garrison | Discovered new exit (range 12) 29619 | -2/Garrison | Lost 3 allies 29621 | -2/Garrison | Entered Access 29621 | -1/Access | Evolved 2 slots: Propulsion x1, Utility x1 30197 | -1/Access | System corruption reached 10% 30212 | -1/Access | Lost 8 parts (2n3u3w) 30265 | -1/Access | Identified Relay Coupler [Proto] (x3) 30419 | -1/Access | Found Prototype Launcher 30420 | -1/Access | Identified Ragnarok Missile Launcher 30482 | -1/Access | Garrison activated, responded to threat 30512 | -1/Access | System corruption reached 30% 30524 | -1/Access | Lost 3 allies 30533 | -1/Access | Destroyed 8 combat bots 30592 | -1/Access | Lost 12 parts (3n6u3w) 30860 | -1/Access | Build established: Botlord-Mutant 30866 | -1/Access | Found Prototype Device 30866 | -1/Access | Identified Exp. Transmission Jammer 31477 | -1/Access | Lost 3 parts (2u1w) 31521 | -1/Access | Destroyed 7 combat bots 31740 | -1/Access | Build established: Botlord-Skirmisher 31871 | -1/Access | First assault squad dispatched 32109 | -1/Access | Discovered new exit (range 5) 32113 | *** | Escaped! Last Messages --------------- link with W-44 Eye. 32091_ I-47 Archangel distress signal jammed. 32093_ Adv. Heat Sink destroyed. 32095_ Dismantling Main Access Shell with Plasma Cutter. 32096_ >> Watcher Feeds: Feed link from W-44 Eye lost. 32098_ Dismantling Main Access Shell with Plasma Cutter. 32103_ TGEW#A43XFBWQD>|LO9RLT|73RDDJ CPHG%XOY 32104_ Dismantling Main Access Shell with Plasma Cutter. 32105_ Plasma Cutter destroyed. 32107_ Destroyed Flexi-carbon Leg. 32107_ Sealed Heavy Doors breached. 32109_ EXIT=FOUND 32112_ Ragnarok Missile Launcher destroyed. [Achievement: 40k Club] [Achievement: Tester] [Achievement: Overachiever] Map ----- +----------------------------------------------------+ | ?????????????????????????????????????????????????? | | ?????????????????????????????????????????????????? | | ?????????????????????????????????????????????????? | | ?????????????????????????????????????????????????? | | ?????????????????????????????????????????????????? | | ?????????????????????????????????????????????????? | | ?????????????????????????????????????????????????? | | ?????????????????????????????????????????????????? | | ?????????????????????????????????????????????????? | | ?????????????????????????????????????????????????? | | ?????????????????????????????????????????????????? | | ?????????????????????????????????????????????????? | | ?????????????????????????????????????????????????? | | ?????????????????????????????????????? #????????? | | ?????????????????????????????????????? #????????? | | ?????????????????????????????????????? #????????? | | ?????????????????????????????????????? #????????? | | ?????????????????????????????????????? #????????? | | ?????????????????????????????????????? #????????? | | ?????????????????????????????????????? #????????? | | ????????????######??###??#####"####### #????????? | | ??????????? "??" ??? " #????????? | | ?????????? BB "??" ???? " #????????? | | #####+#### BB "??" """""" " #????????? | | "??" " " " #????????? | | "?"" " "@ " " #????????? | | "?" " "" " #????????? | | "?" " " #????????? | | ### ### BB "?" l g""" " #????????? | | ??# #??????BB???"" gb """" """ "#????????? | | ??# #???????????" i """"T""" #????????? | | ??+ #???????????###########"####### #????????? | | ??# #?????????????????????????????# #????????? | | ??# #?????????????????????????????# #????????? | | ??# #?????????????????????????????# #????????? | | ??# #?????????????????????????????# #????????? | | ??# #?????????????????????????????# #????????? | | ### ############################### #????????? | | #????????? | | #????????? | | #????????? | | ^ ] #????????? | | ####+############ ############ #????????? | | #????# #??????????# +????????? | | #????# #??????????# ###??????? | | """#????# #?########## ???????? | | Y"#????# ### # ???????? | | """#????# + # #####+#### | | ##???# ####### " # # | | # ## #?????# """ # # ! | +----------------------------------------------------+ Best States ------------- Heat Dissipation 90 Energy Generation 45 Energy Capacity 710 Matter Stores 365 Matter Capacity 550 Sight Range 22 Terrain Scan Density 10 Jamming Range 22 Power Amplification 20 Armor Coverage 600 Core Shielding 20 Weapon Cycling 25 Phase Shifting 15 Evasion (%) 70 Targeting Accuracy 8 Target Analysis 12 Recoil Reduction 2 Relay Coupler Types 6 Relay Coupler Value 141 Item Schematics ----------------- Carbon-fiber Leg | -8/Materials | Hacked Robot Schematics ------------------ None Fabricated ------------ Nothing Repaired ---------- Nothing Alien Tech Used ----------------- None Achievements -------------- 40k Club Beloved Overachiever Pwned Rockin' Loadout Tester Challenges ------------ None Game ------ Seed AssaultDeuteriumBoregun Manual? 0 Play Time 03:58:03 Cumulative 101.9 hours Start 2025.08.15 @ 20:23:24 End 2025.08.17 @ 16:49:04 Sessions 3 Manual Loads 0 Difficulty Rogue Special Mode None Game No. 94 Rogue 94 Adventurer 0 Explorer 0 Win Type 0 Total 3 Types 3/0/0/0/0/0/0/0/0/0 Lore% 51 Gallery% 51 Achievement% 51 Wizard Run 0 Options --------- Layout 1 ASCII 0 Keyboard 1 Movement Arrows Keybinds 0 Fullscreen 1 Font 24/Smallcaps Map View 50x40 Zoom Use 0% Tactical HUD 1 Map Filters NONE Filters NONE Steam 1 RUN: b1565b33-b0f3-4c9b-981e-18e48283c30b